Publisher Label,Publisher URI,"Supplier ID","Supplier","Invoice No.","Amount £","Purpose","Transaction Number","Payment Date","Organisational Unit","Cost Centre(T)","Internal Category Number"
"Wolverhampton City Council","http://opendatacommunities.org/id/metropolitan-district-council/wolverhampton","708072","The Play Inspection Company Limited","30621","580.00","Training Expenses","130216371","13/06/2018","Public Service Reform","Centralised Training","R1650"
"Wolverhampton City Council","http://opendatacommunities.org/id/metropolitan-district-council/wolverhampton","708072","The Play Inspection Company Limited","30621","495.00","Training Expenses","130216371","13/06/2018","Public Service Reform","Centralised Training","R1650"
"Wolverhampton City Council","http://opendatacommunities.org/id/metropolitan-district-council/wolverhampton","708075","The Potters Connection Limited","145964","426.56","Equipment - Purchase","130216714","13/06/2018","Adult Education","Creative Studies Delivery Area","R4000"
"Wolverhampton City Council","http://opendatacommunities.org/id/metropolitan-district-council/wolverhampton","708075","The Potters Connection Limited","145964","50.00","Equipment - Purchase","130216714","13/06/2018","Adult Education","Creative Studies Delivery Area","R4000"
"Wolverhampton City Council","http://opendatacommunities.org/id/metropolitan-district-council/wolverhampton","708082","The Queen Victoria Hotel","01208","105.00","Accommodation Costs","130215270","08/06/2018","Housing","Homeless Families","R4900"
"Wolverhampton City Council","http://opendatacommunities.org/id/metropolitan-district-council/wolverhampton","708082","The Queen Victoria Hotel","01210","275.00","Accommodation Costs","130215272","08/06/2018","Housing","Homeless Families","R4900"
"Wolverhampton City Council","http://opendatacommunities.org/id/metropolitan-district-council/wolverhampton","708090","The Refugee And Migrant Centre Limited","999","1,970.00","TPP - Social Care Support Services","130219272","20/06/2018","Early Intervention","Transformation Challenge Award","R5501"
"Wolverhampton City Council","http://opendatacommunities.org/id/metropolitan-district-council/wolverhampton","708090","The Refugee And Migrant Centre Limited","981","17,500.00","TPP - Social Care Support Services","130219427","20/06/2018","Housing Revenue Account","Single non statutory homelessness","R5501"
"Wolverhampton City Council","http://opendatacommunities.org/id/metropolitan-district-council/wolverhampton","708090","The Refugee And Migrant Centre Limited","991","22,775.13","Grant Payments","130217144","06/06/2018","Looked After Children","Supporting Emotional and Wellbeing of UASC","R4700"
"Wolverhampton City Council","http://opendatacommunities.org/id/metropolitan-district-council/wolverhampton","708090","The Refugee And Migrant Centre Limited","982","16,666.33","TPP - Social Care Support Services","130217704","06/06/2018","Housing Revenue Account","Single non statutory homelessness","R5501"
"Wolverhampton City Council","http://opendatacommunities.org/id/metropolitan-district-council/wolverhampton","708090","The Refugee And Migrant Centre Limited","998","12,154.12","Training Expenses","130220572","29/06/2018","Skills","IMPACT","R1650"
"Wolverhampton City Council","http://opendatacommunities.org/id/metropolitan-district-council/wolverhampton","708099","The Royal Wolverhampton Hospitals","0000216113","33.96","Medical Fees","130216969","06/06/2018","Child Protection","MASH","R1400"
"Wolverhampton City Council","http://opendatacommunities.org/id/metropolitan-district-council/wolverhampton","708099","The Royal Wolverhampton Hospitals","0000218427","18,184.00","TPP - Public Health Contracts","130218417","27/06/2018","Healthy Ageing","LA Role in Health Protection","R5060"
"Wolverhampton City Council","http://opendatacommunities.org/id/metropolitan-district-council/wolverhampton","708099","The Royal Wolverhampton Hospitals","0000216912","2,536.11","Services - Professional Fees","130219054","15/06/2018","Public Service Reform","Coroners Service","R4400"
"Wolverhampton City Council","http://opendatacommunities.org/id/metropolitan-district-council/wolverhampton","708099","The Royal Wolverhampton Hospitals","0000218513","39,635.58","TPP - Payments to Health Authorities","130218291","27/06/2018","Independent Living Service","Independent Living Service","R5101"
"Wolverhampton City Council","http://opendatacommunities.org/id/metropolitan-district-council/wolverhampton","708101","The Royal Wolverhampton School","P17604320180608","143.70","TPP - Supported Living","190468192","13/06/2018","Looked After Children","LAC Transitions Team","R5422"
"Wolverhampton City Council","http://opendatacommunities.org/id/metropolitan-district-council/wolverhampton","708101","The Royal Wolverhampton School","P17710220180622","143.70","TPP - Supported Living","190473328","27/06/2018","Looked After Children","LAC Transitions Team","R5422"
"Wolverhampton City Council","http://opendatacommunities.org/id/metropolitan-district-council/wolverhampton","708101","The Royal Wolverhampton School","P17518120180601","143.70","TPP - Supported Living","190465768","06/06/2018","Looked After Children","LAC Transitions Team","R5422"
"Wolverhampton City Council","http://opendatacommunities.org/id/metropolitan-district-council/wolverhampton","708101","The Royal Wolverhampton School","P17647820180615","143.70","TPP - Supported Living","190469766","20/06/2018","Looked After Children","LAC Transitions Team","R5422"
"Wolverhampton City Council","http://opendatacommunities.org/id/metropolitan-district-council/wolverhampton","708130","The Switch Project Limited","TSP040-18","440.00","Services - Professional Fees","130220573","29/06/2018","Looked After Children","Pupil Premium","R4400"
"Wolverhampton City Council","http://opendatacommunities.org/id/metropolitan-district-council/wolverhampton","708130","The Switch Project Limited","TSP052-18","4,290.00","TPP - Alternative Provision of Education","130220144","27/06/2018","Specialist Support","Alternative Provision","R5037"
"Wolverhampton City Council","http://opendatacommunities.org/id/metropolitan-district-council/wolverhampton","708176","Thompson Avc Limited","35761","289.39","R&M - Departmental planned (external)","130218624","08/06/2018","Markets","Wholesale Market Facilities Management","R2001"
"Wolverhampton City Council","http://opendatacommunities.org/id/metropolitan-district-council/wolverhampton","708176","Thompson Avc Limited","35821","65.02","R&M - Departmental planned (external)","130219273","22/06/2018","Facilities Management","Hickman Avenue Depot","R2001"
"Wolverhampton City Council","http://opendatacommunities.org/id/metropolitan-district-council/wolverhampton","708176","Thompson Avc Limited","35826","65.00","R&M - Departmental planned (external)","130219274","22/06/2018","Facilities Management","Culwell Street Depot","R2001"
"Wolverhampton City Council","http://opendatacommunities.org/id/metropolitan-district-council/wolverhampton","708176","Thompson Avc Limited","35799","127.68","R&M - Departmental planned (external)","130218951","15/06/2018","Facilities Management","Culwell Street Depot","R2001"
"Wolverhampton City Council","http://opendatacommunities.org/id/metropolitan-district-council/wolverhampton","708176","Thompson Avc Limited","35813","160.00","R&M - Departmental planned (external)","130219055","15/06/2018","Facilities Management","Hickman Avenue Depot","R2001"
"Wolverhampton City Council","http://opendatacommunities.org/id/metropolitan-district-council/wolverhampton","708176","Thompson Avc Limited","35753","5,715.68","Fixtures and Fittings - R&M","130218620","08/06/2018","Facilities Management","Civic Centre","R2502"
"Wolverhampton City Council","http://opendatacommunities.org/id/metropolitan-district-council/wolverhampton","708176","Thompson Avc Limited","35752","249.89","Fixtures and Fittings - R&M","130218619","08/06/2018","Facilities Management","Civic Centre","R2502"
"Wolverhampton City Council","http://opendatacommunities.org/id/metropolitan-district-council/wolverhampton","708176","Thompson Avc Limited","35491RE-ISSUE","1,196.75","R&M - Departmental planned (external)","130220574","27/06/2018","Cleaning","Priory Green","R2001"
"Wolverhampton City Council","http://opendatacommunities.org/id/metropolitan-district-council/wolverhampton","708176","Thompson Avc Limited","35794","95.00","R&M - Departmental planned (external)","130218627","13/06/2018","Markets","Wholesale Market Facilities Management","R2001"
"Wolverhampton City Council","http://opendatacommunities.org/id/metropolitan-district-council/wolverhampton","708176","Thompson Avc Limited","35793","120.00","R&M - Departmental planned (external)","130218626","13/06/2018","Facilities Management","Caretakers Community Centre","R2001"
"Wolverhampton City Council","http://opendatacommunities.org/id/metropolitan-district-council/wolverhampton","708176","Thompson Avc Limited","35825","65.00","R&M - Departmental planned (external)","130220145","27/06/2018","Facilities Management","Hickman Avenue Depot","R2001"
"Wolverhampton City Council","http://opendatacommunities.org/id/metropolitan-district-council/wolverhampton","708176","Thompson Avc Limited","35737","1,597.50","Equipment - Purchase","130217379","06/06/2018","ICTS","Strategic ICTS (ICT Service Budget)","R4000"
"Wolverhampton City Council","http://opendatacommunities.org/id/metropolitan-district-council/wolverhampton","708176","Thompson Avc Limited","35754","19,182.50","Equipment - Purchase","130218621","13/06/2018","ICTS","Strategic ICTS (ICT Service Budget)","R4000"
"Wolverhampton City Council","http://opendatacommunities.org/id/metropolitan-district-council/wolverhampton","708176","Thompson Avc Limited","35755","47,280.00","Equipment - Purchase","130218622","13/06/2018","ICTS","Strategic ICTS (ICT Service Budget)","R4000"
"Wolverhampton City Council","http://opendatacommunities.org/id/metropolitan-district-council/wolverhampton","708176","Thompson Avc Limited","35756","29,296.00","Equipment - Purchase","130218623","13/06/2018","ICTS","Strategic ICTS (ICT Service Budget)","R4000"
"Wolverhampton City Council","http://opendatacommunities.org/id/metropolitan-district-council/wolverhampton","708176","Thompson Avc Limited","35791","2,848.00","Equipment - Purchase","130218625","13/06/2018","ICTS","Strategic ICTS (ICT Service Budget)","R4000"
"Wolverhampton City Council","http://opendatacommunities.org/id/metropolitan-district-council/wolverhampton","708180","Thornes Legal Limited","Inv 1481- CourtApp","215.00","Services - Professional Fees","190474799","29/06/2018","Legal Services","Centralised External Legal Costs","R4400"
"Wolverhampton City Council","http://opendatacommunities.org/id/metropolitan-district-council/wolverhampton","708180","Thornes Legal Limited","Inv 1481","300.00","Services - Professional Fees","190474798","29/06/2018","Legal Services","Centralised External Legal Costs","R4400"
"Wolverhampton City Council","http://opendatacommunities.org/id/metropolitan-district-council/wolverhampton","708198","Time Right Limited","SIN086141","45.00","Services - Fees and Charges","130211851","08/06/2018","Environmental Maintenance","Ground Maintenance East","R4401"
"Wolverhampton City Council","http://opendatacommunities.org/id/metropolitan-district-council/wolverhampton","708198","Time Right Limited","SIN090950","75.00","Services - Fees and Charges","130218292","27/06/2018","Environmental Maintenance","Ground Maintenance East","R4401"
"Wolverhampton City Council","http://opendatacommunities.org/id/metropolitan-district-council/wolverhampton","708201","Timeplan Fuel Solutions Limited","1101","125.00","Services - Professional Fees","190471079","20/06/2018","Fleet Services","Fleet Management","R4400"
"Wolverhampton City Council","http://opendatacommunities.org/id/metropolitan-district-council/wolverhampton","708201","Timeplan Fuel Solutions Limited","1101","2.50","Services - Professional Fees","190471079","20/06/2018","Fleet Services","Fleet Management","R4400"
"Wolverhampton City Council","http://opendatacommunities.org/id/metropolitan-district-council/wolverhampton","708201","Timeplan Fuel Solutions Limited","0000001084","400.00","Equipment - R & M","190465955","06/06/2018","Fleet Services","Fleet Management","R4003"
"Wolverhampton City Council","http://opendatacommunities.org/id/metropolitan-district-council/wolverhampton","708233","Tony Davies & Partner Llp","5303/18AFP","934.80","Services - Professional Fees","130217983","06/06/2018","Early Intervention","EIP Locality 2 � Bilston/Rocket Pool","R4400"
"Wolverhampton City Council","http://opendatacommunities.org/id/metropolitan-district-council/wolverhampton","708251","Total Gas & Power Limited","171367828","185.67","Electricity","190472026","22/06/2018","Corporate Asset Management","Central Utilities to Recharge","R2100"
"Wolverhampton City Council","http://opendatacommunities.org/id/metropolitan-district-council/wolverhampton","708251","Total Gas & Power Limited","171334267","3,615.76","Electricity","190471988","22/06/2018","Corporate Asset Management","Central Utilities to Recharge","R2100"
"Wolverhampton City Council","http://opendatacommunities.org/id/metropolitan-district-council/wolverhampton","708251","Total Gas & Power Limited","171334135","3,959.21","Electricity","190471999","22/06/2018","Corporate Asset Management","Central Utilities to Recharge","R2100"
"Wolverhampton City Council","http://opendatacommunities.org/id/metropolitan-district-council/wolverhampton","708251","Total Gas & Power Limited","171334399","3,934.80","Electricity","190471978","22/06/2018","Corporate Asset Management","Central Utilities to Recharge","R2100"
"Wolverhampton City Council","http://opendatacommunities.org/id/metropolitan-district-council/wolverhampton","708251","Total Gas & Power Limited","171513370","191.61","Electricity","190472177","22/06/2018","Corporate Asset Management","Central Utilities to Recharge","R2100"
"Wolverhampton City Council","http://opendatacommunities.org/id/metropolitan-district-council/wolverhampton","708251","Total Gas & Power Limited","171494823","163.55","Electricity","190472145","22/06/2018","Corporate Asset Management","Central Utilities to Recharge","R2100"
"Wolverhampton City Council","http://opendatacommunities.org/id/metropolitan-district-council/wolverhampton","708251","Total Gas & Power Limited","171512490","175.77","Electricity","190472218","22/06/2018","Corporate Asset Management","Central Utilities to Recharge","R2100"
"Wolverhampton City Council","http://opendatacommunities.org/id/metropolitan-district-council/wolverhampton","708251","Total Gas & Power Limited","171334190","3,536.09","Electricity","190471995","22/06/2018","Corporate Asset Management","Central Utilities to Recharge","R2100"
"Wolverhampton City Council","http://opendatacommunities.org/id/metropolitan-district-council/wolverhampton","708251","Total Gas & Power Limited","171487519","181.79","Electricity","190472136","22/06/2018","Corporate Asset Management","Central Utilities to Recharge","R2100"
"Wolverhampton City Council","http://opendatacommunities.org/id/metropolitan-district-council/wolverhampton","708251","Total Gas & Power Limited","171333266","181.66","Electricity","190472013","22/06/2018","Corporate Asset Management","Central Utilities to Recharge","R2100"
"Wolverhampton City Council","http://opendatacommunities.org/id/metropolitan-district-council/wolverhampton","708251","Total Gas & Power Limited","171296450","287.66","Gas","190474407","29/06/2018","Corporate Asset Management","Central Utilities to Recharge","R2101"
"Wolverhampton City Council","http://opendatacommunities.org/id/metropolitan-district-council/wolverhampton","708251","Total Gas & Power Limited","171314918","326.20","Gas","190474315","29/06/2018","Corporate Asset Management","Central Utilities to Recharge","R2101"
"Wolverhampton City Council","http://opendatacommunities.org/id/metropolitan-district-council/wolverhampton","708251","Total Gas & Power Limited","171314852","366.83","Gas","190474321","29/06/2018","Corporate Asset Management","Central Utilities to Recharge","R2101"
"Wolverhampton City Council","http://opendatacommunities.org/id/metropolitan-district-council/wolverhampton","708251","Total Gas & Power Limited","171315149","323.36","Gas","190474291","29/06/2018","Corporate Asset Management","Central Utilities to Recharge","R2101"
"Wolverhampton City Council","http://opendatacommunities.org/id/metropolitan-district-council/wolverhampton","708251","Total Gas & Power Limited","171315116","349.66","Gas","190474294","29/06/2018","Schools","Long Knowle Primary School","R2101"
"Wolverhampton City Council","http://opendatacommunities.org/id/metropolitan-district-council/wolverhampton","708251","Total Gas & Power Limited","171295844","350.61","Gas","190474481","29/06/2018","Schools","Eastfield Nursery","R2101"
"Wolverhampton City Council","http://opendatacommunities.org/id/metropolitan-district-council/wolverhampton","708251","Total Gas & Power Limited","171314731","285.12","Gas","190474333","29/06/2018","Corporate Asset Management","Central Utilities to Recharge","R2101"
"Wolverhampton City Council","http://opendatacommunities.org/id/metropolitan-district-council/wolverhampton","708251","Total Gas & Power Limited","171296152","286.13","Gas","190474448","29/06/2018","Schools","Woodthorne Primary School","R2101"
"Wolverhampton City Council","http://opendatacommunities.org/id/metropolitan-district-council/wolverhampton","708251","Total Gas & Power Limited","171315040","327.74","Gas","190474302","29/06/2018","Corporate Asset Management","Central Utilities to Recharge","R2101"
"Wolverhampton City Council","http://opendatacommunities.org/id/metropolitan-district-council/wolverhampton","708251","Total Gas & Power Limited","171314786","283.29","Gas","190474328","29/06/2018","Corporate Asset Management","Central Utilities to Recharge","R2101"
"Wolverhampton City Council","http://opendatacommunities.org/id/metropolitan-district-council/wolverhampton","708251","Total Gas & Power Limited","171315270","324.50","Gas","190474278","29/06/2018","Schools","Bilston Church of England Primary School","R2101"
"Wolverhampton City Council","http://opendatacommunities.org/id/metropolitan-district-council/wolverhampton","708251","Total Gas & Power Limited","171314742","40.06","Gas","190474332","29/06/2018","Facilities Management","Management of Vacant Properties","R2101"
"Wolverhampton City Council","http://opendatacommunities.org/id/metropolitan-district-council/wolverhampton","708251","Total Gas & Power Limited","171314820","298.86","Gas","190474324","29/06/2018","Corporate Asset Management","Central Utilities to Recharge","R2101"
"Wolverhampton City Council","http://opendatacommunities.org/id/metropolitan-district-council/wolverhampton","708251","Total Gas & Power Limited","171315160","294.22","Gas","190474289","29/06/2018","Schools","Westacre Infant School","R2101"
"Wolverhampton City Council","http://opendatacommunities.org/id/metropolitan-district-council/wolverhampton","708251","Total Gas & Power Limited","171296427","294.78","Gas","190474418","29/06/2018","Corporate Asset Management","Central Utilities to Recharge","R2101"
"Wolverhampton City Council","http://opendatacommunities.org/id/metropolitan-district-council/wolverhampton","708251","Total Gas & Power Limited","171296416","40.15","Gas","190474419","29/06/2018","Corporate Asset Management","Central Utilities to Recharge","R2101"
"Wolverhampton City Council","http://opendatacommunities.org/id/metropolitan-district-council/wolverhampton","708251","Total Gas & Power Limited","171296262","276.99","Gas","190474438","29/06/2018","Schools","Penn Hall Special School","R2101"
"Wolverhampton City Council","http://opendatacommunities.org/id/metropolitan-district-council/wolverhampton","708251","Total Gas & Power Limited","171295283","40.69","Gas","190474416","29/06/2018","Corporate Asset Management","Central Utilities to Recharge","R2101"
"Wolverhampton City Council","http://opendatacommunities.org/id/metropolitan-district-council/wolverhampton","708251","Total Gas & Power Limited","171314687","370.94","Gas","190474338","29/06/2018","Corporate Asset Management","Central Utilities to Recharge","R2101"
"Wolverhampton City Council","http://opendatacommunities.org/id/metropolitan-district-council/wolverhampton","708251","Total Gas & Power Limited","171314930","376.32","Gas","190474313","29/06/2018","Corporate Asset Management","Central Utilities to Recharge","R2101"
"Wolverhampton City Council","http://opendatacommunities.org/id/metropolitan-district-council/wolverhampton","708251","Total Gas & Power Limited","171314907","415.49","Gas","190474316","29/06/2018","Corporate Asset Management","Central Utilities to Recharge","R2101"
"Wolverhampton City Council","http://opendatacommunities.org/id/metropolitan-district-council/wolverhampton","708251","Total Gas & Power Limited","171314973","358.33","Gas","190474309","29/06/2018","Schools","West Park Primary School","R2101"
"Wolverhampton City Council","http://opendatacommunities.org/id/metropolitan-district-council/wolverhampton","708251","Total Gas & Power Limited","171295900","345.79","Gas","190474475","29/06/2018","Corporate Asset Management","Central Utilities to Recharge","R2101"
"Wolverhampton City Council","http://opendatacommunities.org/id/metropolitan-district-council/wolverhampton","708251","Total Gas & Power Limited","171296526","36.26","Gas","190474401","29/06/2018","Corporate Asset Management","Central Utilities to Recharge","R2101"
"Wolverhampton City Council","http://opendatacommunities.org/id/metropolitan-district-council/wolverhampton","708251","Total Gas & Power Limited","171296185","34.72","Gas","190474445","29/06/2018","Corporate Asset Management","Central Utilities to Recharge","R2101"
"Wolverhampton City Council","http://opendatacommunities.org/id/metropolitan-district-council/wolverhampton","708251","Total Gas & Power Limited","171295811","34.72","Gas","190474492","29/06/2018","Facilities Management","Management of Vacant Properties","R2101"
"Wolverhampton City Council","http://opendatacommunities.org/id/metropolitan-district-council/wolverhampton","708251","Total Gas & Power Limited","171295899","34.72","Gas","190474476","29/06/2018","Schools","Bushbury Nursery","R2101"
"Wolverhampton City Council","http://opendatacommunities.org/id/metropolitan-district-council/wolverhampton","708251","Total Gas & Power Limited","171315072","392.69","Gas","190474299","29/06/2018","Corporate Asset Management","Central Utilities to Recharge","R2101"
"Wolverhampton City Council","http://opendatacommunities.org/id/metropolitan-district-council/wolverhampton","708251","Total Gas & Power Limited","171315260","408.60","Gas","190474279","29/06/2018","Schools","St Paul�s Church of England (Aided) School","R2101"
"Wolverhampton City Council","http://opendatacommunities.org/id/metropolitan-district-council/wolverhampton","708251","Total Gas & Power Limited","171314412","34.72","Gas","190474366","29/06/2018","Corporate Asset Management","Central Utilities to Recharge","R2101"
"Wolverhampton City Council","http://opendatacommunities.org/id/metropolitan-district-council/wolverhampton","708251","Total Gas & Power Limited","171296471","34.72","Gas","190474406","29/06/2018","Corporate Asset Management","Central Utilities to Recharge","R2101"
"Wolverhampton City Council","http://opendatacommunities.org/id/metropolitan-district-council/wolverhampton","708251","Total Gas & Power Limited","171296383","34.72","Gas","190474423","29/06/2018","Facilities Management","Management of Vacant Properties","R2101"
"Wolverhampton City Council","http://opendatacommunities.org/id/metropolitan-district-council/wolverhampton","708251","Total Gas & Power Limited","171296340","34.72","Gas","190474427","29/06/2018","Corporate Asset Management","Central Utilities to Recharge","R2101"
"Wolverhampton City Council","http://opendatacommunities.org/id/metropolitan-district-council/wolverhampton","708251","Total Gas & Power Limited","171296460","34.72","Gas","190474415","29/06/2018","Corporate Asset Management","Central Utilities to Recharge","R2101"
"Wolverhampton City Council","http://opendatacommunities.org/id/metropolitan-district-council/wolverhampton","708251","Total Gas & Power Limited","171296230","34.72","Gas","190474441","29/06/2018","Corporate Asset Management","Central Utilities to Recharge","R2101"
"Wolverhampton City Council","http://opendatacommunities.org/id/metropolitan-district-council/wolverhampton","708251","Total Gas & Power Limited","171314764","34.72","Gas","190474330","29/06/2018","Corporate Asset Management","Central Utilities to Recharge","R2101"
"Wolverhampton City Council","http://opendatacommunities.org/id/metropolitan-district-council/wolverhampton","708251","Total Gas & Power Limited","171314885","34.72","Gas","190474317","29/06/2018","Corporate Asset Management","Central Utilities to Recharge","R2101"
"Wolverhampton City Council","http://opendatacommunities.org/id/metropolitan-district-council/wolverhampton","708251","Total Gas & Power Limited","171314874","34.72","Gas","190474318","29/06/2018","Corporate Asset Management","Central Utilities to Recharge","R2101"
"Wolverhampton City Council","http://opendatacommunities.org/id/metropolitan-district-council/wolverhampton","708251","Total Gas & Power Limited","171315336","34.72","Gas","190474409","29/06/2018","Corporate Asset Management","Central Utilities to Recharge","R2101"
"Wolverhampton City Council","http://opendatacommunities.org/id/metropolitan-district-council/wolverhampton","708251","Total Gas & Power Limited","170207757","26.04","Gas","190474270","29/06/2018","Schools","Trinity Church of England Primary School","R2101"
"Wolverhampton City Council","http://opendatacommunities.org/id/metropolitan-district-council/wolverhampton","708251","Total Gas & Power Limited","171315292","275.76","Gas","190474276","29/06/2018","Schools","Springvale Primary School","R2101"
"Wolverhampton City Council","http://opendatacommunities.org/id/metropolitan-district-council/wolverhampton","708251","Total Gas & Power Limited","171314709","320.75","Gas","190474336","29/06/2018","Corporate Asset Management","Central Utilities to Recharge","R2101"
"Wolverhampton City Council","http://opendatacommunities.org/id/metropolitan-district-council/wolverhampton","708251","Total Gas & Power Limited","171314698","306.27","Gas","190474337","29/06/2018","Housing Revenue Account","Hostels / Outreach","R2101"
"Wolverhampton City Council","http://opendatacommunities.org/id/metropolitan-district-council/wolverhampton","708251","Total Gas & Power Limited","171315050","306.92","Gas","190474301","29/06/2018","Corporate Asset Management","Central Utilities to Recharge","R2101"
"Wolverhampton City Council","http://opendatacommunities.org/id/metropolitan-district-council/wolverhampton","708251","Total Gas & Power Limited","171315182","307.84","Gas","190474288","29/06/2018","Schools","Castlecroft Primary School","R2101"
"Wolverhampton City Council","http://opendatacommunities.org/id/metropolitan-district-council/wolverhampton","708251","Total Gas & Power Limited","171296372","304.74","Gas","190474424","29/06/2018","Corporate Asset Management","Central Utilities to Recharge","R2101"
"Wolverhampton City Council","http://opendatacommunities.org/id/metropolitan-district-council/wolverhampton","708251","Total Gas & Power Limited","171315281","267.43","Gas","190474277","29/06/2018","Corporate Asset Management","Central Utilities to Recharge","R2101"
"Wolverhampton City Council","http://opendatacommunities.org/id/metropolitan-district-council/wolverhampton","708251","Total Gas & Power Limited","171314951","268.85","Gas","190474311","29/06/2018","Schools","Lanesfield Primary School","R2101"
"Wolverhampton City Council","http://opendatacommunities.org/id/metropolitan-district-council/wolverhampton","708251","Total Gas & Power Limited","171314808","257.97","Gas","190474326","29/06/2018","Corporate Asset Management","Central Utilities to Recharge","R2101"
"Wolverhampton City Council","http://opendatacommunities.org/id/metropolitan-district-council/wolverhampton","708251","Total Gas & Power Limited","171315325","276.52","Gas","190474408","29/06/2018","Schools","St Luke�s Church of England Aided Primary School","R2101"
"Wolverhampton City Council","http://opendatacommunities.org/id/metropolitan-district-council/wolverhampton","708251","Total Gas & Power Limited","171314676","242.21","Gas","190474339","29/06/2018","Corporate Asset Management","Central Utilities to Recharge","R2101"
"Wolverhampton City Council","http://opendatacommunities.org/id/metropolitan-district-council/wolverhampton","708251","Total Gas & Power Limited","171296108","255.09","Gas","190474455","29/06/2018","Schools","Wodensfield Primary School","R2101"
"Wolverhampton City Council","http://opendatacommunities.org/id/metropolitan-district-council/wolverhampton","708251","Total Gas & Power Limited","171315150","244.15","Gas","190474290","29/06/2018","Schools","Uplands Junior School","R2101"
"Wolverhampton City Council","http://opendatacommunities.org/id/metropolitan-district-council/wolverhampton","708251","Total Gas & Power Limited","171314720","232.45","Gas","190474334","29/06/2018","Corporate Asset Management","Central Utilities to Recharge","R2101"
"Wolverhampton City Council","http://opendatacommunities.org/id/metropolitan-district-council/wolverhampton","708251","Total Gas & Power Limited","171314710","232.04","Gas","190474335","29/06/2018","Corporate Asset Management","Central Utilities to Recharge","R2101"
"Wolverhampton City Council","http://opendatacommunities.org/id/metropolitan-district-council/wolverhampton","708251","Total Gas & Power Limited","171295822","227.57","Gas","190474489","29/06/2018","Facilities Management","Management of Vacant Properties","R2101"
"Wolverhampton City Council","http://opendatacommunities.org/id/metropolitan-district-council/wolverhampton","708251","Total Gas & Power Limited","171314841","263.68","Gas","190474322","29/06/2018","Corporate Asset Management","Central Utilities to Recharge","R2101"
"Wolverhampton City Council","http://opendatacommunities.org/id/metropolitan-district-council/wolverhampton","708251","Total Gas & Power Limited","171314830","225.73","Gas","190474323","29/06/2018","Schools","Bilston Nursery","R2101"
"Wolverhampton City Council","http://opendatacommunities.org/id/metropolitan-district-council/wolverhampton","708251","Total Gas & Power Limited","171314940","224.63","Gas","190474312","29/06/2018","Schools","Wodensfield Primary School","R2101"
"Wolverhampton City Council","http://opendatacommunities.org/id/metropolitan-district-council/wolverhampton","708251","Total Gas & Power Limited","171314566","226.34","Gas","190474350","29/06/2018","Corporate Asset Management","Central Utilities to Recharge","R2101"
"Wolverhampton City Council","http://opendatacommunities.org/id/metropolitan-district-council/wolverhampton","708251","Total Gas & Power Limited","171315314","226.14","Gas","190474274","29/06/2018","Schools","Merridale Primary School","R2101"
"Wolverhampton City Council","http://opendatacommunities.org/id/metropolitan-district-council/wolverhampton","708251","Total Gas & Power Limited","171295910","226.58","Gas","190474474","29/06/2018","Corporate Asset Management","Central Utilities to Recharge","R2101"
"Wolverhampton City Council","http://opendatacommunities.org/id/metropolitan-district-council/wolverhampton","708251","Total Gas & Power Limited","171295932","225.13","Gas","190474472","29/06/2018","Corporate Asset Management","Central Utilities to Recharge","R2101"
"Wolverhampton City Council","http://opendatacommunities.org/id/metropolitan-district-council/wolverhampton","708251","Total Gas & Power Limited","171314654","272.89","Gas","190474340","29/06/2018","Schools","St Patrick�s Catholic Primary School","R2101"
"Wolverhampton City Council","http://opendatacommunities.org/id/metropolitan-district-council/wolverhampton","708251","Total Gas & Power Limited","171296163","251.87","Gas","190474447","29/06/2018","Schools","Woodthorne Primary School","R2101"
"Wolverhampton City Council","http://opendatacommunities.org/id/metropolitan-district-council/wolverhampton","708251","Total Gas & Power Limited","153259474C","-6.72","Gas","190474268","29/06/2018","Corporate Asset Management","Central Utilities to Recharge","R2101"
"Wolverhampton City Council","http://opendatacommunities.org/id/metropolitan-district-council/wolverhampton","708251","Total Gas & Power Limited","171296042","221.87","Gas","190474461","29/06/2018","Schools","Fallings Park Primary School","R2101"
"Wolverhampton City Council","http://opendatacommunities.org/id/metropolitan-district-council/wolverhampton","708251","Total Gas & Power Limited","171296009","282.61","Gas","190474465","29/06/2018","Schools","St Andrews Church of England Primary School","R2101"
"Wolverhampton City Council","http://opendatacommunities.org/id/metropolitan-district-council/wolverhampton","708251","Total Gas & Power Limited","171315193","201.24","Gas","190474287","29/06/2018","Schools","D�Eyncourt Primary School","R2101"
"Wolverhampton City Council","http://opendatacommunities.org/id/metropolitan-district-council/wolverhampton","708251","Total Gas & Power Limited","171315391","237.63","Gas","190474483","29/06/2018","Corporate Asset Management","Central Utilities to Recharge","R2101"
"Wolverhampton City Council","http://opendatacommunities.org/id/metropolitan-district-council/wolverhampton","708251","Total Gas & Power Limited","171295877","227.87","Gas","190474478","29/06/2018","Corporate Asset Management","Central Utilities to Recharge","R2101"
"Wolverhampton City Council","http://opendatacommunities.org/id/metropolitan-district-council/wolverhampton","708251","Total Gas & Power Limited","168003027C","-57.37","Gas","190474451","29/06/2018","Schools","Long Knowle Primary School","R2101"
"Wolverhampton City Council","http://opendatacommunities.org/id/metropolitan-district-council/wolverhampton","708251","Total Gas & Power Limited","170089496C","-51.58","Gas","190474452","29/06/2018","Schools","Long Knowle Primary School","R2101"
"Wolverhampton City Council","http://opendatacommunities.org/id/metropolitan-district-council/wolverhampton","708251","Total Gas & Power Limited","171296845","241.42","Gas","190474368","29/06/2018","Schools","Holy Trinity Catholic Primary School","R2101"
"Wolverhampton City Council","http://opendatacommunities.org/id/metropolitan-district-council/wolverhampton","708251","Total Gas & Power Limited","171314863","206.92","Gas","190474319","29/06/2018","Corporate Asset Management","Central Utilities to Recharge","R2101"
"Wolverhampton City Council","http://opendatacommunities.org/id/metropolitan-district-council/wolverhampton","708251","Total Gas & Power Limited","168003005C","-72.14","Gas","190474272","29/06/2018","Schools","Woodthorne Primary School","R2101"
"Wolverhampton City Council","http://opendatacommunities.org/id/metropolitan-district-council/wolverhampton","708251","Total Gas & Power Limited","171295866","204.39","Gas","190474479","29/06/2018","Corporate Asset Management","Central Utilities to Recharge","R2101"
"Wolverhampton City Council","http://opendatacommunities.org/id/metropolitan-district-council/wolverhampton","708251","Total Gas & Power Limited","170088825C","-85.05","Gas","190474266","29/06/2018","Schools","Christ Church (Tettenhall Wood) Infant School","R2101"
"Wolverhampton City Council","http://opendatacommunities.org/id/metropolitan-district-council/wolverhampton","708251","Total Gas & Power Limited","171314632","212.02","Gas","190474342","29/06/2018","Corporate Asset Management","Central Utilities to Recharge","R2101"
"Wolverhampton City Council","http://opendatacommunities.org/id/metropolitan-district-council/wolverhampton","708251","Total Gas & Power Limited","171314665","207.82","Gas","190474343","29/06/2018","Corporate Asset Management","Central Utilities to Recharge","R2101"
"Wolverhampton City Council","http://opendatacommunities.org/id/metropolitan-district-council/wolverhampton","708251","Total Gas & Power Limited","171314962","194.12","Gas","190474310","29/06/2018","Schools","St Anthony�s Catholic Primary School","R2101"
"Wolverhampton City Council","http://opendatacommunities.org/id/metropolitan-district-council/wolverhampton","708251","Total Gas & Power Limited","171314555","210.89","Gas","190474351","29/06/2018","Corporate Asset Management","Central Utilities to Recharge","R2101"
"Wolverhampton City Council","http://opendatacommunities.org/id/metropolitan-district-council/wolverhampton","708251","Total Gas & Power Limited","171315303","183.08","Gas","190474275","29/06/2018","Schools","Christ Church (Church of England) Junior School","R2101"
"Wolverhampton City Council","http://opendatacommunities.org/id/metropolitan-district-council/wolverhampton","708251","Total Gas & Power Limited","171296603","141.86","Gas","190474392","29/06/2018","Corporate Asset Management","Central Utilities to Recharge","R2101"
"Wolverhampton City Council","http://opendatacommunities.org/id/metropolitan-district-council/wolverhampton","708251","Total Gas & Power Limited","170089309C","-317.09","Gas","190474431","29/06/2018","Corporate Asset Management","Central Utilities to Recharge","R2101"
"Wolverhampton City Council","http://opendatacommunities.org/id/metropolitan-district-council/wolverhampton","708251","Total Gas & Power Limited","171315171","177.25","Gas","190474292","29/06/2018","Schools","Loxdale Primary School","R2101"
"Wolverhampton City Council","http://opendatacommunities.org/id/metropolitan-district-council/wolverhampton","708251","Total Gas & Power Limited","171296911","189.40","Gas","190474367","29/06/2018","Schools","Whitgreave Infant School","R2101"
"Wolverhampton City Council","http://opendatacommunities.org/id/metropolitan-district-council/wolverhampton","708251","Total Gas & Power Limited","171314984","188.50","Gas","190474308","29/06/2018","Schools","St Michael�s Church of England Primary School","R2101"
"Wolverhampton City Council","http://opendatacommunities.org/id/metropolitan-district-council/wolverhampton","708251","Total Gas & Power Limited","171314929","183.89","Gas","190474314","29/06/2018","Corporate Asset Management","Central Utilities to Recharge","R2101"
"Wolverhampton City Council","http://opendatacommunities.org/id/metropolitan-district-council/wolverhampton","708251","Total Gas & Power Limited","171315138","4,896.99","Gas","190474293","29/06/2018","Corporate Asset Management","Central Utilities to Recharge","R2101"
"Wolverhampton City Council","http://opendatacommunities.org/id/metropolitan-district-council/wolverhampton","708251","Total Gas & Power Limited","171296064","131.36","Gas","190474459","29/06/2018","Schools","St Patrick�s Catholic Primary School","R2101"
"Wolverhampton City Council","http://opendatacommunities.org/id/metropolitan-district-council/wolverhampton","708251","Total Gas & Power Limited","171296339","117.43","Gas","190474430","29/06/2018","Schools","Oak Meadow Primary School","R2101"
"Wolverhampton City Council","http://opendatacommunities.org/id/metropolitan-district-council/wolverhampton","708251","Total Gas & Power Limited","171295294","4,979.93","Gas","190474414","29/06/2018","Corporate Asset Management","Central Utilities to Recharge","R2101"
"Wolverhampton City Council","http://opendatacommunities.org/id/metropolitan-district-council/wolverhampton","708251","Total Gas & Power Limited","171296120","139.84","Gas","190474453","29/06/2018","Schools","Long Knowle Primary School","R2101"
"Wolverhampton City Council","http://opendatacommunities.org/id/metropolitan-district-council/wolverhampton","708251","Total Gas & Power Limited","171295272","2,027.87","Gas","190474422","29/06/2018","Schools","Tettenhall Wood Special School","R2101"
"Wolverhampton City Council","http://opendatacommunities.org/id/metropolitan-district-council/wolverhampton","708251","Total Gas & Power Limited","171295800","126.79","Gas","190474491","29/06/2018","Facilities Management","Management of Vacant Properties","R2101"
"Wolverhampton City Council","http://opendatacommunities.org/id/metropolitan-district-council/wolverhampton","708251","Total Gas & Power Limited","171315028","4,135.27","Gas","190474304","29/06/2018","Corporate Asset Management","Central Utilities to Recharge","R2101"
"Wolverhampton City Council","http://opendatacommunities.org/id/metropolitan-district-council/wolverhampton","708251","Total Gas & Power Limited","171315017","2,097.91","Gas","190474305","29/06/2018","Corporate Asset Management","Central Utilities to Recharge","R2101"
"Wolverhampton City Council","http://opendatacommunities.org/id/metropolitan-district-council/wolverhampton","708251","Total Gas & Power Limited","171315380","2,154.48","Gas","190474412","29/06/2018","Corporate Asset Management","Central Utilities to Recharge","R2101"
"Wolverhampton City Council","http://opendatacommunities.org/id/metropolitan-district-council/wolverhampton","708251","Total Gas & Power Limited","171315248","119.50","Gas","190474281","29/06/2018","Corporate Asset Management","Central Utilities to Recharge","R2101"
"Wolverhampton City Council","http://opendatacommunities.org/id/metropolitan-district-council/wolverhampton","708251","Total Gas & Power Limited","171315215","2,611.37","Gas","190474285","29/06/2018","Corporate Asset Management","Central Utilities to Recharge","R2101"
"Wolverhampton City Council","http://opendatacommunities.org/id/metropolitan-district-council/wolverhampton","708251","Total Gas & Power Limited","171314610","114.43","Gas","190474345","29/06/2018","Corporate Asset Management","Central Utilities to Recharge","R2101"
"Wolverhampton City Council","http://opendatacommunities.org/id/metropolitan-district-council/wolverhampton","708251","Total Gas & Power Limited","171315094","3,072.26","Gas","190474296","29/06/2018","Schools","Colton Hills Community School","R2101"
"Wolverhampton City Council","http://opendatacommunities.org/id/metropolitan-district-council/wolverhampton","708251","Total Gas & Power Limited","171296504","66.21","Gas","190474403","29/06/2018","Schools","Bilston Church of England Primary School","R2101"
"Wolverhampton City Council","http://opendatacommunities.org/id/metropolitan-district-council/wolverhampton","708251","Total Gas & Power Limited","171296097","65.94","Gas","190474456","29/06/2018","Schools","Wodensfield Primary School","R2101"
"Wolverhampton City Council","http://opendatacommunities.org/id/metropolitan-district-council/wolverhampton","708251","Total Gas & Power Limited","171295965","65.77","Gas","190474469","29/06/2018","Schools","Claregate Primary School","R2101"
"Wolverhampton City Council","http://opendatacommunities.org/id/metropolitan-district-council/wolverhampton","708251","Total Gas & Power Limited","171295789","76.88","Gas","190474488","29/06/2018","Corporate Asset Management","Central Utilities to Recharge","R2101"
"Wolverhampton City Council","http://opendatacommunities.org/id/metropolitan-district-council/wolverhampton","708251","Total Gas & Power Limited","171295250","76.70","Gas","190474429","29/06/2018","Schools","Bushbury Hill Primary School","R2101"
"Wolverhampton City Council","http://opendatacommunities.org/id/metropolitan-district-council/wolverhampton","708251","Total Gas & Power Limited","170923230","76.74","Gas","190474457","29/06/2018","Corporate Asset Management","Central Utilities to Recharge","R2101"
"Wolverhampton City Council","http://opendatacommunities.org/id/metropolitan-district-council/wolverhampton","708251","Total Gas & Power Limited","170207735","80.00","Gas","190474271","29/06/2018","Schools","Trinity Church of England Primary School","R2101"
"Wolverhampton City Council","http://opendatacommunities.org/id/metropolitan-district-council/wolverhampton","708251","Total Gas & Power Limited","171296548","76.61","Gas","190474399","29/06/2018","Corporate Asset Management","Central Utilities to Recharge","R2101"
"Wolverhampton City Council","http://opendatacommunities.org/id/metropolitan-district-council/wolverhampton","708251","Total Gas & Power Limited","171296537","84.66","Gas","190474400","29/06/2018","Corporate Asset Management","Central Utilities to Recharge","R2101"
"Wolverhampton City Council","http://opendatacommunities.org/id/metropolitan-district-council/wolverhampton","708251","Total Gas & Power Limited","171315369","1,218.66","Gas","190474283","29/06/2018","Schools","Penn Hall Special School","R2101"
"Wolverhampton City Council","http://opendatacommunities.org/id/metropolitan-district-council/wolverhampton","708251","Total Gas & Power Limited","171296636","82.49","Gas","190474393","29/06/2018","Schools","Ashmore Park Nursery","R2101"
"Wolverhampton City Council","http://opendatacommunities.org/id/metropolitan-district-council/wolverhampton","708251","Total Gas & Power Limited","171295261","80.50","Gas","190474428","29/06/2018","Corporate Asset Management","Central Utilities to Recharge","R2101"
"Wolverhampton City Council","http://opendatacommunities.org/id/metropolitan-district-council/wolverhampton","708251","Total Gas & Power Limited","171295943","81.66","Gas","190474471","29/06/2018","Schools","Springdale Primary School","R2101"
"Wolverhampton City Council","http://opendatacommunities.org/id/metropolitan-district-council/wolverhampton","708251","Total Gas & Power Limited","171295217","66.57","Gas","190474487","29/06/2018","Schools","St Luke�s Church of England Aided Primary School","R2101"
"Wolverhampton City Council","http://opendatacommunities.org/id/metropolitan-district-council/wolverhampton","708251","Total Gas & Power Limited","171296020","63.21","Gas","190474463","29/06/2018","Schools","St Anthony�s Catholic Primary School","R2101"
"Wolverhampton City Council","http://opendatacommunities.org/id/metropolitan-district-council/wolverhampton","708251","Total Gas & Power Limited","170323664","72.82","Gas","190474267","29/06/2018","Schools","Christ Church (Tettenhall Wood) Infant School","R2101"
"Wolverhampton City Council","http://opendatacommunities.org/id/metropolitan-district-council/wolverhampton","708251","Total Gas & Power Limited","171296559","62.77","Gas","190474398","29/06/2018","Corporate Asset Management","Central Utilities to Recharge","R2101"
"Wolverhampton City Council","http://opendatacommunities.org/id/metropolitan-district-council/wolverhampton","708251","Total Gas & Power Limited","169461440","64.71","Gas","190474273","29/06/2018","Schools","Woodthorne Primary School","R2101"
"Wolverhampton City Council","http://opendatacommunities.org/id/metropolitan-district-council/wolverhampton","708251","Total Gas & Power Limited","171296834","65.03","Gas","190474369","29/06/2018","Corporate Asset Management","Central Utilities to Recharge","R2101"
"Wolverhampton City Council","http://opendatacommunities.org/id/metropolitan-district-council/wolverhampton","708251","Total Gas & Power Limited","171315083","1,178.18","Gas","190474298","29/06/2018","Schools","Stowheath Primary School","R2101"
"Wolverhampton City Council","http://opendatacommunities.org/id/metropolitan-district-council/wolverhampton","708251","Total Gas & Power Limited","171314995","1,089.54","Gas","190474307","29/06/2018","Schools","Warstones Primary School","R2101"
"Wolverhampton City Council","http://opendatacommunities.org/id/metropolitan-district-council/wolverhampton","708251","Total Gas & Power Limited","171315039","1,127.83","Gas","190474303","29/06/2018","Corporate Asset Management","Central Utilities to Recharge","R2101"
"Wolverhampton City Council","http://opendatacommunities.org/id/metropolitan-district-council/wolverhampton","708251","Total Gas & Power Limited","171315006","1,861.14","Gas","190474306","29/06/2018","Schools","Springdale Primary School","R2101"
"Wolverhampton City Council","http://opendatacommunities.org/id/metropolitan-district-council/wolverhampton","708251","Total Gas & Power Limited","171296306","100.82","Gas","190474434","29/06/2018","Corporate Asset Management","Central Utilities to Recharge","R2101"
"Wolverhampton City Council","http://opendatacommunities.org/id/metropolitan-district-council/wolverhampton","708251","Total Gas & Power Limited","171296823","98.87","Gas","190474370","29/06/2018","Corporate Asset Management","Central Utilities to Recharge","R2101"
"Wolverhampton City Council","http://opendatacommunities.org/id/metropolitan-district-council/wolverhampton","708251","Total Gas & Power Limited","171314819","907.31","Gas","190474325","29/06/2018","Corporate Asset Management","Central Utilities to Recharge","R2101"
"Wolverhampton City Council","http://opendatacommunities.org/id/metropolitan-district-council/wolverhampton","708251","Total Gas & Power Limited","171315226","1,063.71","Gas","190474284","29/06/2018","Corporate Asset Management","Central Utilities to Recharge","R2101"
"Wolverhampton City Council","http://opendatacommunities.org/id/metropolitan-district-council/wolverhampton","708251","Total Gas & Power Limited","171296174","85.66","Gas","190474446","29/06/2018","Schools","Loxdale Primary School","R2101"
"Wolverhampton City Council","http://opendatacommunities.org/id/metropolitan-district-council/wolverhampton","708251","Total Gas & Power Limited","171295239","71.82","Gas","190474484","29/06/2018","Corporate Asset Management","Central Utilities to Recharge","R2101"
"Wolverhampton City Council","http://opendatacommunities.org/id/metropolitan-district-council/wolverhampton","708251","Total Gas & Power Limited","171296218","72.63","Gas","190474443","29/06/2018","Schools","Merridale Primary School","R2101"
"Wolverhampton City Council","http://opendatacommunities.org/id/metropolitan-district-council/wolverhampton","708251","Total Gas & Power Limited","170088825","85.05","Gas","190474493","29/06/2018","Schools","Christ Church (Tettenhall Wood) Infant School","R2101"
"Wolverhampton City Council","http://opendatacommunities.org/id/metropolitan-district-council/wolverhampton","708251","Total Gas & Power Limited","171296570","70.46","Gas","190474396","29/06/2018","Corporate Asset Management","Central Utilities to Recharge","R2101"
"Wolverhampton City Council","http://opendatacommunities.org/id/metropolitan-district-council/wolverhampton","708251","Total Gas & Power Limited","171296130","91.91","Gas","190474450","29/06/2018","Corporate Asset Management","Central Utilities to Recharge","R2101"
"Wolverhampton City Council","http://opendatacommunities.org/id/metropolitan-district-council/wolverhampton","708251","Total Gas & Power Limited","171296141","69.87","Gas","190474449","29/06/2018","Schools","Woodthorne Primary School","R2101"
"Wolverhampton City Council","http://opendatacommunities.org/id/metropolitan-district-council/wolverhampton","708251","Total Gas & Power Limited","171295855","69.19","Gas","190474480","29/06/2018","Schools","Uplands Junior School","R2101"
"Wolverhampton City Council","http://opendatacommunities.org/id/metropolitan-district-council/wolverhampton","708251","Total Gas & Power Limited","171314797","92.42","Gas","190474327","29/06/2018","Corporate Asset Management","Central Utilities to Recharge","R2101"
"Wolverhampton City Council","http://opendatacommunities.org/id/metropolitan-district-council/wolverhampton","708251","Total Gas & Power Limited","171296482","91.99","Gas","190474405","29/06/2018","Corporate Asset Management","Central Utilities to Recharge","R2101"
"Wolverhampton City Council","http://opendatacommunities.org/id/metropolitan-district-council/wolverhampton","708251","Total Gas & Power Limited","171314600","1,404.61","Gas","190474346","29/06/2018","Corporate Asset Management","Central Utilities to Recharge","R2101"
"Wolverhampton City Council","http://opendatacommunities.org/id/metropolitan-district-council/wolverhampton","708251","Total Gas & Power Limited","171296207","66.84","Gas","190474444","29/06/2018","Schools","Stowheath Primary School","R2101"
"Wolverhampton City Council","http://opendatacommunities.org/id/metropolitan-district-council/wolverhampton","708251","Total Gas & Power Limited","171296031","66.80","Gas","190474462","29/06/2018","Schools","St Anthony�s Catholic Primary School","R2101"
"Wolverhampton City Council","http://opendatacommunities.org/id/metropolitan-district-council/wolverhampton","708251","Total Gas & Power Limited","171315105","1,484.70","Gas","190474295","29/06/2018","Corporate Asset Management","Central Utilities to Recharge","R2101"
"Wolverhampton City Council","http://opendatacommunities.org/id/metropolitan-district-council/wolverhampton","708251","Total Gas & Power Limited","171315204","585.00","Gas","190474286","29/06/2018","Corporate Asset Management","Central Utilities to Recharge","R2101"
"Wolverhampton City Council","http://opendatacommunities.org/id/metropolitan-district-council/wolverhampton","708251","Total Gas & Power Limited","171296284","49.07","Gas","190474436","29/06/2018","Schools","Penn Hall Special School","R2101"
"Wolverhampton City Council","http://opendatacommunities.org/id/metropolitan-district-council/wolverhampton","708251","Total Gas & Power Limited","171314896","497.77","Gas","190474320","29/06/2018","Schools","Claregate Primary School","R2101"
"Wolverhampton City Council","http://opendatacommunities.org/id/metropolitan-district-council/wolverhampton","708251","Total Gas & Power Limited","171296449","54.99","Gas","190474411","29/06/2018","Corporate Asset Management","Central Utilities to Recharge","R2101"
"Wolverhampton City Council","http://opendatacommunities.org/id/metropolitan-district-council/wolverhampton","708251","Total Gas & Power Limited","171296273","54.50","Gas","190474437","29/06/2018","Schools","Penn Hall Special School","R2101"
"Wolverhampton City Council","http://opendatacommunities.org/id/metropolitan-district-council/wolverhampton","708251","Total Gas & Power Limited","171296581","51.43","Gas","190474395","29/06/2018","Schools","Fallings Park Primary School","R2101"
"Wolverhampton City Council","http://opendatacommunities.org/id/metropolitan-district-council/wolverhampton","708251","Total Gas & Power Limited","171296350","54.62","Gas","190474426","29/06/2018","Schools","Wilkinson Primary School","R2101"
"Wolverhampton City Council","http://opendatacommunities.org/id/metropolitan-district-council/wolverhampton","708251","Total Gas & Power Limited","171295954","51.94","Gas","190474470","29/06/2018","Corporate Asset Management","Central Utilities to Recharge","R2101"
"Wolverhampton City Council","http://opendatacommunities.org/id/metropolitan-district-council/wolverhampton","708251","Total Gas & Power Limited","171296328","450.95","Gas","190474432","29/06/2018","Corporate Asset Management","Central Utilities to Recharge","R2101"
"Wolverhampton City Council","http://opendatacommunities.org/id/metropolitan-district-council/wolverhampton","708251","Total Gas & Power Limited","171296317","50.64","Gas","190474433","29/06/2018","Corporate Asset Management","Central Utilities to Recharge","R2101"
"Wolverhampton City Council","http://opendatacommunities.org/id/metropolitan-district-council/wolverhampton","708251","Total Gas & Power Limited","171295240","47.84","Gas","190474482","29/06/2018","Corporate Asset Management","Central Utilities to Recharge","R2101"
"Wolverhampton City Council","http://opendatacommunities.org/id/metropolitan-district-council/wolverhampton","708251","Total Gas & Power Limited","171296010","48.20","Gas","190474464","29/06/2018","Schools","Warstones Primary School","R2101"
"Wolverhampton City Council","http://opendatacommunities.org/id/metropolitan-district-council/wolverhampton","708251","Total Gas & Power Limited","171296592","44.97","Gas","190474394","29/06/2018","Corporate Asset Management","Central Utilities to Recharge","R2101"
"Wolverhampton City Council","http://opendatacommunities.org/id/metropolitan-district-council/wolverhampton","708251","Total Gas & Power Limited","171295921","47.84","Gas","190474473","29/06/2018","Corporate Asset Management","Central Utilities to Recharge","R2101"
"Wolverhampton City Council","http://opendatacommunities.org/id/metropolitan-district-council/wolverhampton","708251","Total Gas & Power Limited","171295976","47.84","Gas","190474468","29/06/2018","Corporate Asset Management","Central Utilities to Recharge","R2101"
"Wolverhampton City Council","http://opendatacommunities.org/id/metropolitan-district-council/wolverhampton","708251","Total Gas & Power Limited","171314577","426.18","Gas","190474349","29/06/2018","Corporate Asset Management","Central Utilities to Recharge","R2101"
"Wolverhampton City Council","http://opendatacommunities.org/id/metropolitan-district-council/wolverhampton","708251","Total Gas & Power Limited","171315347","45.76","Gas","190474413","29/06/2018","Corporate Asset Management","Central Utilities to Recharge","R2101"
"Wolverhampton City Council","http://opendatacommunities.org/id/metropolitan-district-council/wolverhampton","708251","Total Gas & Power Limited","171296119","47.84","Gas","190474454","29/06/2018","Corporate Asset Management","Central Utilities to Recharge","R2101"
"Wolverhampton City Council","http://opendatacommunities.org/id/metropolitan-district-council/wolverhampton","708251","Total Gas & Power Limited","171314621","47.84","Gas","190474344","29/06/2018","Corporate Asset Management","Central Utilities to Recharge","R2101"
"Wolverhampton City Council","http://opendatacommunities.org/id/metropolitan-district-council/wolverhampton","708251","Total Gas & Power Limited","171314643","47.84","Gas","190474341","29/06/2018","Corporate Asset Management","Central Utilities to Recharge","R2101"
"Wolverhampton City Council","http://opendatacommunities.org/id/metropolitan-district-council/wolverhampton","708251","Total Gas & Power Limited","171314753","47.84","Gas","190474331","29/06/2018","Facilities Management","Management of Vacant Properties","R2101"
"Wolverhampton City Council","http://opendatacommunities.org/id/metropolitan-district-council/wolverhampton","708251","Total Gas & Power Limited","171314775","47.84","Gas","190474329","29/06/2018","Corporate Asset Management","Central Utilities to Recharge","R2101"
"Wolverhampton City Council","http://opendatacommunities.org/id/metropolitan-district-council/wolverhampton","708251","Total Gas & Power Limited","171296361","604.86","Gas","190474425","29/06/2018","Schools","Bantock Primary School","R2101"
"Wolverhampton City Council","http://opendatacommunities.org/id/metropolitan-district-council/wolverhampton","708251","Total Gas & Power Limited","171296405","47.57","Gas","190474420","29/06/2018","Corporate Asset Management","Central Utilities to Recharge","R2101"
"Wolverhampton City Council","http://opendatacommunities.org/id/metropolitan-district-council/wolverhampton","708251","Total Gas & Power Limited","170207746","610.94","Gas","190474269","29/06/2018","Corporate Asset Management","Central Utilities to Recharge","R2101"
"Wolverhampton City Council","http://opendatacommunities.org/id/metropolitan-district-council/wolverhampton","708251","Total Gas & Power Limited","171295790","578.25","Gas","190474490","29/06/2018","Facilities Management","Management of Vacant Properties","R2101"
"Wolverhampton City Council","http://opendatacommunities.org/id/metropolitan-district-council/wolverhampton","708251","Total Gas & Power Limited","171296438","580.79","Gas","190474417","29/06/2018","Corporate Asset Management","Central Utilities to Recharge","R2101"
"Wolverhampton City Council","http://opendatacommunities.org/id/metropolitan-district-council/wolverhampton","708251","Total Gas & Power Limited","171296053","650.96","Gas","190474460","29/06/2018","Schools","Fallings Park Primary School","R2101"
"Wolverhampton City Council","http://opendatacommunities.org/id/metropolitan-district-council/wolverhampton","708251","Total Gas & Power Limited","171315127","633.42","Gas","190474297","29/06/2018","Schools","St Andrews Church of England Primary School","R2101"
"Wolverhampton City Council","http://opendatacommunities.org/id/metropolitan-district-council/wolverhampton","708251","Total Gas & Power Limited","171315237","648.46","Gas","190474282","29/06/2018","Corporate Asset Management","Central Utilities to Recharge","R2101"
"Wolverhampton City Council","http://opendatacommunities.org/id/metropolitan-district-council/wolverhampton","708251","Total Gas & Power Limited","171296560","56.07","Gas","190474397","29/06/2018","Corporate Asset Management","Central Utilities to Recharge","R2101"
"Wolverhampton City Council","http://opendatacommunities.org/id/metropolitan-district-council/wolverhampton","708251","Total Gas & Power Limited","171296394","56.62","Gas","190474421","29/06/2018","Facilities Management","Management of Vacant Properties","R2101"
"Wolverhampton City Council","http://opendatacommunities.org/id/metropolitan-district-council/wolverhampton","708251","Total Gas & Power Limited","171296251","58.60","Gas","190474439","29/06/2018","Schools","Castlecroft Primary School","R2101"
"Wolverhampton City Council","http://opendatacommunities.org/id/metropolitan-district-council/wolverhampton","708251","Total Gas & Power Limited","171296515","56.70","Gas","190474402","29/06/2018","Corporate Asset Management","Central Utilities to Recharge","R2101"
"Wolverhampton City Council","http://opendatacommunities.org/id/metropolitan-district-council/wolverhampton","708251","Total Gas & Power Limited","171296295","55.53","Gas","190474435","29/06/2018","Schools","Penn Hall Special School","R2101"
"Wolverhampton City Council","http://opendatacommunities.org/id/metropolitan-district-council/wolverhampton","708251","Total Gas & Power Limited","171296075","60.69","Gas","190474458","29/06/2018","Schools","St Michael�s Church of England Primary School","R2101"
"Wolverhampton City Council","http://opendatacommunities.org/id/metropolitan-district-council/wolverhampton","708251","Total Gas & Power Limited","171315370","62.59","Gas","190474410","29/06/2018","Corporate Asset Management","Central Utilities to Recharge","R2101"
"Wolverhampton City Council","http://opendatacommunities.org/id/metropolitan-district-council/wolverhampton","708251","Total Gas & Power Limited","171296493","60.60","Gas","190474404","29/06/2018","Schools","Hill Avenue Primary School","R2101"
"Wolverhampton City Council","http://opendatacommunities.org/id/metropolitan-district-council/wolverhampton","708251","Total Gas & Power Limited","171296240","59.78","Gas","190474440","29/06/2018","Schools","Whitgreave Infant School","R2101"
"Wolverhampton City Council","http://opendatacommunities.org/id/metropolitan-district-council/wolverhampton","708251","Total Gas & Power Limited","171296229","61.77","Gas","190474442","29/06/2018","Schools","Christ Church (Church of England) Junior School","R2101"
"Wolverhampton City Council","http://opendatacommunities.org/id/metropolitan-district-council/wolverhampton","708251","Total Gas & Power Limited","171295888","59.24","Gas","190474477","29/06/2018","Corporate Asset Management","Central Utilities to Recharge","R2101"
"Wolverhampton City Council","http://opendatacommunities.org/id/metropolitan-district-council/wolverhampton","708251","Total Gas & Power Limited","171315061","766.57","Gas","190474300","29/06/2018","Corporate Asset Management","Central Utilities to Recharge","R2101"
"Wolverhampton City Council","http://opendatacommunities.org/id/metropolitan-district-council/wolverhampton","708251","Total Gas & Power Limited","171315259","676.73","Gas","190474280","29/06/2018","Schools","Dovecotes Primary School","R2101"
"Wolverhampton City Council","http://opendatacommunities.org/id/metropolitan-district-council/wolverhampton","708251","Total Gas & Power Limited","171367960","88.47","Electricity","190472024","22/06/2018","Corporate Asset Management","Central Utilities to Recharge","R2100"
"Wolverhampton City Council","http://opendatacommunities.org/id/metropolitan-district-council/wolverhampton","708251","Total Gas & Power Limited","154548135","693.43","Electricity","190472244","22/06/2018","Schools","Bushbury Hill Primary School","R2100"
"Wolverhampton City Council","http://opendatacommunities.org/id/metropolitan-district-council/wolverhampton","708251","Total Gas & Power Limited","153369640","791.02","Electricity","190472243","22/06/2018","Schools","Bushbury Hill Primary School","R2100"
"Wolverhampton City Council","http://opendatacommunities.org/id/metropolitan-district-council/wolverhampton","708251","Total Gas & Power Limited","171367840","117.87","Electricity","190472025","22/06/2018","Corporate Asset Management","Central Utilities to Recharge","R2100"
"Wolverhampton City Council","http://opendatacommunities.org/id/metropolitan-district-council/wolverhampton","708251","Total Gas & Power Limited","157596378","815.24","Electricity","190472246","22/06/2018","Schools","Bushbury Hill Primary School","R2100"
"Wolverhampton City Council","http://opendatacommunities.org/id/metropolitan-district-council/wolverhampton","708251","Total Gas & Power Limited","163253931","838.32","Electricity","190472249","22/06/2018","Schools","Bushbury Hill Primary School","R2100"
"Wolverhampton City Council","http://opendatacommunities.org/id/metropolitan-district-council/wolverhampton","708251","Total Gas & Power Limited","160069398","1,007.58","Electricity","190472247","22/06/2018","Schools","Bushbury Hill Primary School","R2100"
"Wolverhampton City Council","http://opendatacommunities.org/id/metropolitan-district-council/wolverhampton","708251","Total Gas & Power Limited","171512380","976.75","Electricity","190472226","22/06/2018","Schools","Bushbury Hill Primary School","R2100"
"Wolverhampton City Council","http://opendatacommunities.org/id/metropolitan-district-council/wolverhampton","708251","Total Gas & Power Limited","161124760","1,031.81","Electricity","190472248","22/06/2018","Schools","Bushbury Hill Primary School","R2100"
"Wolverhampton City Council","http://opendatacommunities.org/id/metropolitan-district-council/wolverhampton","708251","Total Gas & Power Limited","164922829","992.91","Electricity","190472250","22/06/2018","Schools","Bushbury Hill Primary School","R2100"
"Wolverhampton City Council","http://opendatacommunities.org/id/metropolitan-district-council/wolverhampton","708251","Total Gas & Power Limited","168008648","976.15","Electricity","190472252","22/06/2018","Schools","Bushbury Hill Primary School","R2100"
"Wolverhampton City Council","http://opendatacommunities.org/id/metropolitan-district-council/wolverhampton","708251","Total Gas & Power Limited","166182692","909.50","Electricity","190472251","22/06/2018","Schools","Bushbury Hill Primary School","R2100"
"Wolverhampton City Council","http://opendatacommunities.org/id/metropolitan-district-council/wolverhampton","708251","Total Gas & Power Limited","169661376","935.19","Electricity","190472253","22/06/2018","Schools","Bushbury Hill Primary School","R2100"
"Wolverhampton City Council","http://opendatacommunities.org/id/metropolitan-district-council/wolverhampton","708251","Total Gas & Power Limited","156144422","442.43","Electricity","190472245","22/06/2018","Schools","Bushbury Hill Primary School","R2100"
"Wolverhampton City Council","http://opendatacommunities.org/id/metropolitan-district-council/wolverhampton","708251","Total Gas & Power Limited","171512434","1,076.54","Electricity","190472224","22/06/2018","Schools","St Andrews Church of England Primary School","R2100"
"Wolverhampton City Council","http://opendatacommunities.org/id/metropolitan-district-council/wolverhampton","708251","Total Gas & Power Limited","171491248","55.56","Electricity","190472047","22/06/2018","Schools","St Luke�s Church of England Aided Primary School","R2100"
"Wolverhampton City Council","http://opendatacommunities.org/id/metropolitan-district-council/wolverhampton","708251","Total Gas & Power Limited","171491083","269.19","Electricity","190472049","22/06/2018","Corporate Asset Management","Central Utilities to Recharge","R2100"
"Wolverhampton City Council","http://opendatacommunities.org/id/metropolitan-district-council/wolverhampton","708251","Total Gas & Power Limited","171491292","365.50","Electricity","190472046","22/06/2018","Corporate Asset Management","Central Utilities to Recharge","R2100"
"Wolverhampton City Council","http://opendatacommunities.org/id/metropolitan-district-council/wolverhampton","708251","Total Gas & Power Limited","171512412","1,452.79","Electricity","190472225","22/06/2018","Corporate Asset Management","Central Utilities to Recharge","R2100"
"Wolverhampton City Council","http://opendatacommunities.org/id/metropolitan-district-council/wolverhampton","708251","Total Gas & Power Limited","171491105","201.77","Electricity","190472048","22/06/2018","Corporate Asset Management","Central Utilities to Recharge","R2100"
"Wolverhampton City Council","http://opendatacommunities.org/id/metropolitan-district-council/wolverhampton","708251","Total Gas & Power Limited","171314544","386.15","Gas","190474352","29/06/2018","Schools","Rakegate Primary School","R2101"
"Wolverhampton City Council","http://opendatacommunities.org/id/metropolitan-district-council/wolverhampton","708251","Total Gas & Power Limited","171314588","360.98","Gas","190474348","29/06/2018","Corporate Asset Management","Central Utilities to Recharge","R2101"
"Wolverhampton City Council","http://opendatacommunities.org/id/metropolitan-district-council/wolverhampton","708251","Total Gas & Power Limited","171296670","35.23","Gas","190474386","29/06/2018","Facilities Management","Management of Vacant Properties","R2101"
"Wolverhampton City Council","http://opendatacommunities.org/id/metropolitan-district-council/wolverhampton","708251","Total Gas & Power Limited","171295228","37.28","Gas","190474486","29/06/2018","Corporate Asset Management","Central Utilities to Recharge","R2101"
"Wolverhampton City Council","http://opendatacommunities.org/id/metropolitan-district-council/wolverhampton","708251","Total Gas & Power Limited","171314456","34.72","Gas","190474361","29/06/2018","Corporate Asset Management","Central Utilities to Recharge","R2101"
"Wolverhampton City Council","http://opendatacommunities.org/id/metropolitan-district-council/wolverhampton","708251","Total Gas & Power Limited","171314434","294.41","Gas","190474364","29/06/2018","Corporate Asset Management","Central Utilities to Recharge","R2101"
"Wolverhampton City Council","http://opendatacommunities.org/id/metropolitan-district-council/wolverhampton","708251","Total Gas & Power Limited","171314511","273.74","Gas","190474355","29/06/2018","Corporate Asset Management","Central Utilities to Recharge","R2101"
"Wolverhampton City Council","http://opendatacommunities.org/id/metropolitan-district-council/wolverhampton","708251","Total Gas & Power Limited","171295833","274.65","Gas","190474485","29/06/2018","Corporate Asset Management","Central Utilities to Recharge","R2101"
"Wolverhampton City Council","http://opendatacommunities.org/id/metropolitan-district-council/wolverhampton","708251","Total Gas & Power Limited","171314467","235.90","Gas","190474360","29/06/2018","Corporate Asset Management","Central Utilities to Recharge","R2101"
"Wolverhampton City Council","http://opendatacommunities.org/id/metropolitan-district-council/wolverhampton","708251","Total Gas & Power Limited","171295998","191.93","Gas","190474466","29/06/2018","Schools","St Andrews Church of England Primary School","R2101"
"Wolverhampton City Council","http://opendatacommunities.org/id/metropolitan-district-council/wolverhampton","708251","Total Gas & Power Limited","171295987","183.72","Gas","190474467","29/06/2018","Schools","Wood End Primary School","R2101"
"Wolverhampton City Council","http://opendatacommunities.org/id/metropolitan-district-council/wolverhampton","708251","Total Gas & Power Limited","171296801","149.90","Gas","190474372","29/06/2018","Housing Revenue Account","Amounts to be Settled with Wolverhampton Homes","R2101"
"Wolverhampton City Council","http://opendatacommunities.org/id/metropolitan-district-council/wolverhampton","708251","Total Gas & Power Limited","170088671C","-206.84","Gas","190474363","29/06/2018","Corporate Asset Management","Central Utilities to Recharge","R2101"
"Wolverhampton City Council","http://opendatacommunities.org/id/metropolitan-district-council/wolverhampton","708251","Total Gas & Power Limited","171296669","175.32","Gas","190474387","29/06/2018","Corporate Asset Management","Central Utilities to Recharge","R2101"
"Wolverhampton City Council","http://opendatacommunities.org/id/metropolitan-district-council/wolverhampton","708251","Total Gas & Power Limited","171314490","103.03","Gas","190474357","29/06/2018","Corporate Asset Management","Central Utilities to Recharge","R2101"
"Wolverhampton City Council","http://opendatacommunities.org/id/metropolitan-district-council/wolverhampton","708251","Total Gas & Power Limited","171296812","113.43","Gas","190474371","29/06/2018","Corporate Asset Management","Central Utilities to Recharge","R2101"
"Wolverhampton City Council","http://opendatacommunities.org/id/metropolitan-district-council/wolverhampton","708251","Total Gas & Power Limited","171296790","74.26","Gas","190474373","29/06/2018","Schools","Bushbury Nursery","R2101"
"Wolverhampton City Council","http://opendatacommunities.org/id/metropolitan-district-council/wolverhampton","708251","Total Gas & Power Limited","171314533","112.08","Gas","190474353","29/06/2018","Corporate Asset Management","Central Utilities to Recharge","R2101"
"Wolverhampton City Council","http://opendatacommunities.org/id/metropolitan-district-council/wolverhampton","708251","Total Gas & Power Limited","171296647","78.07","Gas","190474389","29/06/2018","Corporate Asset Management","Central Utilities to Recharge","R2101"
"Wolverhampton City Council","http://opendatacommunities.org/id/metropolitan-district-council/wolverhampton","708251","Total Gas & Power Limited","171296780","84.73","Gas","190474374","29/06/2018","Corporate Asset Management","Central Utilities to Recharge","R2101"
"Wolverhampton City Council","http://opendatacommunities.org/id/metropolitan-district-council/wolverhampton","708251","Total Gas & Power Limited","171296735","84.03","Gas","190474380","29/06/2018","Schools","Christ Church (Tettenhall Wood) Infant School","R2101"
"Wolverhampton City Council","http://opendatacommunities.org/id/metropolitan-district-council/wolverhampton","708251","Total Gas & Power Limited","171314500","1,192.70","Gas","190474356","29/06/2018","Corporate Asset Management","Central Utilities to Recharge","R2101"
"Wolverhampton City Council","http://opendatacommunities.org/id/metropolitan-district-council/wolverhampton","708251","Total Gas & Power Limited","171296746","71.41","Gas","190474378","29/06/2018","Corporate Asset Management","Central Utilities to Recharge","R2101"
"Wolverhampton City Council","http://opendatacommunities.org/id/metropolitan-district-council/wolverhampton","708251","Total Gas & Power Limited","171296625","67.31","Gas","190474390","29/06/2018","Corporate Asset Management","Central Utilities to Recharge","R2101"
"Wolverhampton City Council","http://opendatacommunities.org/id/metropolitan-district-council/wolverhampton","708251","Total Gas & Power Limited","171296713","68.85","Gas","190474382","29/06/2018","Corporate Asset Management","Central Utilities to Recharge","R2101"
"Wolverhampton City Council","http://opendatacommunities.org/id/metropolitan-district-council/wolverhampton","708251","Total Gas & Power Limited","171296702","49.58","Gas","190474383","29/06/2018","Corporate Asset Management","Central Utilities to Recharge","R2101"
"Wolverhampton City Council","http://opendatacommunities.org/id/metropolitan-district-council/wolverhampton","708251","Total Gas & Power Limited","171296900","53.62","Gas","190474379","29/06/2018","Schools","Christ Church (Tettenhall Wood) Infant School","R2101"
"Wolverhampton City Council","http://opendatacommunities.org/id/metropolitan-district-council/wolverhampton","708251","Total Gas & Power Limited","171296757","54.54","Gas","190474377","29/06/2018","Corporate Asset Management","Central Utilities to Recharge","R2101"
"Wolverhampton City Council","http://opendatacommunities.org/id/metropolitan-district-council/wolverhampton","708251","Total Gas & Power Limited","171296658","51.10","Gas","190474388","29/06/2018","Schools","Eastfield Nursery","R2101"
"Wolverhampton City Council","http://opendatacommunities.org/id/metropolitan-district-council/wolverhampton","708251","Total Gas & Power Limited","171314478","421.33","Gas","190474359","29/06/2018","Corporate Asset Management","Central Utilities to Recharge","R2101"
"Wolverhampton City Council","http://opendatacommunities.org/id/metropolitan-district-council/wolverhampton","708251","Total Gas & Power Limited","171314423","47.84","Gas","190474365","29/06/2018","Facilities Management","Management of Vacant Properties","R2101"
"Wolverhampton City Council","http://opendatacommunities.org/id/metropolitan-district-council/wolverhampton","708251","Total Gas & Power Limited","171296614","47.84","Gas","190474391","29/06/2018","Corporate Asset Management","Central Utilities to Recharge","R2101"
"Wolverhampton City Council","http://opendatacommunities.org/id/metropolitan-district-council/wolverhampton","708251","Total Gas & Power Limited","171314599","611.25","Gas","190474347","29/06/2018","Corporate Asset Management","Central Utilities to Recharge","R2101"
"Wolverhampton City Council","http://opendatacommunities.org/id/metropolitan-district-council/wolverhampton","708251","Total Gas & Power Limited","171296724","58.06","Gas","190474381","29/06/2018","Corporate Asset Management","Central Utilities to Recharge","R2101"
"Wolverhampton City Council","http://opendatacommunities.org/id/metropolitan-district-council/wolverhampton","708251","Total Gas & Power Limited","171296768","57.61","Gas","190474376","29/06/2018","Schools","Wodensfield Primary School","R2101"
"Wolverhampton City Council","http://opendatacommunities.org/id/metropolitan-district-council/wolverhampton","708251","Total Gas & Power Limited","171314489","705.18","Gas","190474358","29/06/2018","Corporate Asset Management","Central Utilities to Recharge","R2101"
"Wolverhampton City Council","http://opendatacommunities.org/id/metropolitan-district-council/wolverhampton","708251","Total Gas & Power Limited","171314445","61.67","Gas","190474362","29/06/2018","Corporate Asset Management","Central Utilities to Recharge","R2101"
"Wolverhampton City Council","http://opendatacommunities.org/id/metropolitan-district-council/wolverhampton","708251","Total Gas & Power Limited","171314522","62.50","Gas","190474354","29/06/2018","Corporate Asset Management","Central Utilities to Recharge","R2101"
"Wolverhampton City Council","http://opendatacommunities.org/id/metropolitan-district-council/wolverhampton","708251","Total Gas & Power Limited","171296680","61.36","Gas","190474385","29/06/2018","Schools","Phoenix Nursery","R2101"
"Wolverhampton City Council","http://opendatacommunities.org/id/metropolitan-district-council/wolverhampton","708251","Total Gas & Power Limited","171296779","59.82","Gas","190474375","29/06/2018","Corporate Asset Management","Central Utilities to Recharge","R2101"
"Wolverhampton City Council","http://opendatacommunities.org/id/metropolitan-district-council/wolverhampton","708251","Total Gas & Power Limited","171296691","59.60","Gas","190474384","29/06/2018","Schools","Merridale Primary School","R2101"
"Wolverhampton City Council","http://opendatacommunities.org/id/metropolitan-district-council/wolverhampton","708251","Total Gas & Power Limited","171334201","2,975.33","Electricity","190471994","22/06/2018","Corporate Asset Management","Central Utilities to Recharge","R2100"
"Wolverhampton City Council","http://opendatacommunities.org/id/metropolitan-district-council/wolverhampton","708251","Total Gas & Power Limited","171334322","2,753.17","Electricity","190471982","22/06/2018","Corporate Asset Management","Central Utilities to Recharge","R2100"
"Wolverhampton City Council","http://opendatacommunities.org/id/metropolitan-district-council/wolverhampton","708251","Total Gas & Power Limited","171488344","199.14","Electricity","190472118","22/06/2018","Corporate Asset Management","Central Utilities to Recharge","R2100"
"Wolverhampton City Council","http://opendatacommunities.org/id/metropolitan-district-council/wolverhampton","708251","Total Gas & Power Limited","171494295","169.97","Electricity","190472151","22/06/2018","Corporate Asset Management","Central Utilities to Recharge","R2100"
"Wolverhampton City Council","http://opendatacommunities.org/id/metropolitan-district-council/wolverhampton","708251","Total Gas & Power Limited","171512984","2,584.35","Electricity","190472193","22/06/2018","Schools","Penn Hall Special School","R2100"
"Wolverhampton City Council","http://opendatacommunities.org/id/metropolitan-district-council/wolverhampton","708251","Total Gas & Power Limited","142779004","2,155.29","Electricity","190472237","22/06/2018","Corporate Asset Management","Central Utilities to Recharge","R2100"
"Wolverhampton City Council","http://opendatacommunities.org/id/metropolitan-district-council/wolverhampton","708251","Total Gas & Power Limited","149912317","2,169.60","Electricity","190472240","22/06/2018","Corporate Asset Management","Central Utilities to Recharge","R2100"
"Wolverhampton City Council","http://opendatacommunities.org/id/metropolitan-district-council/wolverhampton","708251","Total Gas & Power Limited","149935990","2,174.19","Electricity","190472241","22/06/2018","Corporate Asset Management","Central Utilities to Recharge","R2100"
"Wolverhampton City Council","http://opendatacommunities.org/id/metropolitan-district-council/wolverhampton","708251","Total Gas & Power Limited","171487520","161.17","Electricity","190472135","22/06/2018","Corporate Asset Management","Central Utilities to Recharge","R2100"
"Wolverhampton City Council","http://opendatacommunities.org/id/metropolitan-district-council/wolverhampton","708251","Total Gas & Power Limited","171489125","156.00","Electricity","190472169","22/06/2018","Corporate Asset Management","Central Utilities to Recharge","R2100"
"Wolverhampton City Council","http://opendatacommunities.org/id/metropolitan-district-council/wolverhampton","708251","Total Gas & Power Limited","171367179","168.38","Electricity","190472038","22/06/2018","Corporate Asset Management","Central Utilities to Recharge","R2100"
"Wolverhampton City Council","http://opendatacommunities.org/id/metropolitan-district-council/wolverhampton","708251","Total Gas & Power Limited","169480240/18","133,868.90","Electricity","190474748","29/06/2018","Street Lighting","Street Lighting Energy","R2100"
"Wolverhampton City Council","http://opendatacommunities.org/id/metropolitan-district-council/wolverhampton","708251","Total Gas & Power Limited","171334080/18","114,856.87","Electricity","190474671","29/06/2018","Street Lighting","Street Lighting Energy","R2100"
"Wolverhampton City Council","http://opendatacommunities.org/id/metropolitan-district-council/wolverhampton","708251","Total Gas & Power Limited","171367201","73.63","Electricity","190472037","22/06/2018","Corporate Asset Management","Central Utilities to Recharge","R2100"
"Wolverhampton City Council","http://opendatacommunities.org/id/metropolitan-district-council/wolverhampton","708251","Total Gas & Power Limited","171334058","75.12","Electricity","190472003","22/06/2018","Corporate Asset Management","Central Utilities to Recharge","R2100"
"Wolverhampton City Council","http://opendatacommunities.org/id/metropolitan-district-council/wolverhampton","708251","Total Gas & Power Limited","171392116","558.15","Electricity","190472106","22/06/2018","Schools","Castlecroft Primary School","R2100"
"Wolverhampton City Council","http://opendatacommunities.org/id/metropolitan-district-council/wolverhampton","708251","Total Gas & Power Limited","171392710","74.70","Electricity","190472089","22/06/2018","Corporate Asset Management","Central Utilities to Recharge","R2100"
"Wolverhampton City Council","http://opendatacommunities.org/id/metropolitan-district-council/wolverhampton","708251","Total Gas & Power Limited","171392897","567.22","Electricity","190472085","22/06/2018","Corporate Asset Management","Central Utilities to Recharge","R2100"
"Wolverhampton City Council","http://opendatacommunities.org/id/metropolitan-district-council/wolverhampton","708251","Total Gas & Power Limited","171489620","74.34","Electricity","190472162","22/06/2018","Corporate Asset Management","Central Utilities to Recharge","R2100"
"Wolverhampton City Council","http://opendatacommunities.org/id/metropolitan-district-council/wolverhampton","708251","Total Gas & Power Limited","171367091","74.99","Electricity","190472040","22/06/2018","Corporate Asset Management","Central Utilities to Recharge","R2100"
"Wolverhampton City Council","http://opendatacommunities.org/id/metropolitan-district-council/wolverhampton","708251","Total Gas & Power Limited","171494713","76.07","Electricity","190472147","22/06/2018","Corporate Asset Management","Central Utilities to Recharge","R2100"
"Wolverhampton City Council","http://opendatacommunities.org/id/metropolitan-district-council/wolverhampton","708251","Total Gas & Power Limited","171489147","633.36","Electricity","190472168","22/06/2018","Schools","St Michael�s Church of England Primary School","R2100"
"Wolverhampton City Council","http://opendatacommunities.org/id/metropolitan-district-council/wolverhampton","708251","Total Gas & Power Limited","171494350","557.29","Electricity","190472150","22/06/2018","Schools","Whitgreave Infant School","R2100"
"Wolverhampton City Council","http://opendatacommunities.org/id/metropolitan-district-council/wolverhampton","708251","Total Gas & Power Limited","171333420","81.52","Electricity","190472009","22/06/2018","Schools","Penn Hall Special School","R2100"
"Wolverhampton City Council","http://opendatacommunities.org/id/metropolitan-district-council/wolverhampton","708251","Total Gas & Power Limited","171392028","605.63","Electricity","190472109","22/06/2018","Corporate Asset Management","Central Utilities to Recharge","R2100"
"Wolverhampton City Council","http://opendatacommunities.org/id/metropolitan-district-council/wolverhampton","708251","Total Gas & Power Limited","171367718","82.90","Electricity","190472028","22/06/2018","Corporate Asset Management","Central Utilities to Recharge","R2100"
"Wolverhampton City Council","http://opendatacommunities.org/id/metropolitan-district-council/wolverhampton","708251","Total Gas & Power Limited","171334300","508.86","Electricity","190471984","22/06/2018","Corporate Asset Management","Central Utilities to Recharge","R2100"
"Wolverhampton City Council","http://opendatacommunities.org/id/metropolitan-district-council/wolverhampton","708251","Total Gas & Power Limited","171490566","500.69","Electricity","190472062","22/06/2018","Schools","D�Eyncourt Primary School","R2100"
"Wolverhampton City Council","http://opendatacommunities.org/id/metropolitan-district-council/wolverhampton","708251","Total Gas & Power Limited","171367070","79.87","Electricity","190472041","22/06/2018","Corporate Asset Management","Central Utilities to Recharge","R2100"
"Wolverhampton City Council","http://opendatacommunities.org/id/metropolitan-district-council/wolverhampton","708251","Total Gas & Power Limited","171367751","67.06","Electricity","190472027","22/06/2018","Corporate Asset Management","Central Utilities to Recharge","R2100"
"Wolverhampton City Council","http://opendatacommunities.org/id/metropolitan-district-council/wolverhampton","708251","Total Gas & Power Limited","171512995","510.13","Electricity","190472192","22/06/2018","Corporate Asset Management","Central Utilities to Recharge","R2100"
"Wolverhampton City Council","http://opendatacommunities.org/id/metropolitan-district-council/wolverhampton","708251","Total Gas & Power Limited","171512500","489.23","Electricity","190472217","22/06/2018","Corporate Asset Management","Central Utilities to Recharge","R2100"
"Wolverhampton City Council","http://opendatacommunities.org/id/metropolitan-district-council/wolverhampton","708251","Total Gas & Power Limited","171512489","541.18","Electricity","190472221","22/06/2018","Facilities Management","i10 Facilities Management","R2100"
"Wolverhampton City Council","http://opendatacommunities.org/id/metropolitan-district-council/wolverhampton","708251","Total Gas & Power Limited","171512930","542.43","Electricity","190472199","22/06/2018","Corporate Asset Management","Central Utilities to Recharge","R2100"
"Wolverhampton City Council","http://opendatacommunities.org/id/metropolitan-district-council/wolverhampton","708251","Total Gas & Power Limited","171367498","535.82","Electricity","190472031","22/06/2018","Schools","Merridale Primary School","R2100"
"Wolverhampton City Council","http://opendatacommunities.org/id/metropolitan-district-council/wolverhampton","708251","Total Gas & Power Limited","171490808","67.74","Electricity","190472055","22/06/2018","Schools","Wodensfield Primary School","R2100"
"Wolverhampton City Council","http://opendatacommunities.org/id/metropolitan-district-council/wolverhampton","708251","Total Gas & Power Limited","171488223","539.24","Electricity","190472121","22/06/2018","Schools","Uplands Junior School","R2100"
"Wolverhampton City Council","http://opendatacommunities.org/id/metropolitan-district-council/wolverhampton","708251","Total Gas & Power Limited","171333520","69.43","Electricity","190472007","22/06/2018","Corporate Asset Management","Central Utilities to Recharge","R2100"
"Wolverhampton City Council","http://opendatacommunities.org/id/metropolitan-district-council/wolverhampton","708251","Total Gas & Power Limited","171489830","527.88","Electricity","190472076","22/06/2018","Corporate Asset Management","Central Utilities to Recharge","R2100"
"Wolverhampton City Council","http://opendatacommunities.org/id/metropolitan-district-council/wolverhampton","708251","Total Gas & Power Limited","171392633","521.05","Electricity","190472094","22/06/2018","Schools","Springvale Primary School","R2100"
"Wolverhampton City Council","http://opendatacommunities.org/id/metropolitan-district-council/wolverhampton","708251","Total Gas & Power Limited","171491050","511.82","Electricity","190472050","22/06/2018","Corporate Asset Management","Central Utilities to Recharge","R2100"
"Wolverhampton City Council","http://opendatacommunities.org/id/metropolitan-district-council/wolverhampton","708251","Total Gas & Power Limited","171491391","702.15","Electricity","190472043","22/06/2018","Schools","Holy Trinity Catholic Primary School","R2100"
"Wolverhampton City Council","http://opendatacommunities.org/id/metropolitan-district-council/wolverhampton","708251","Total Gas & Power Limited","171494724","70.04","Electricity","190472146","22/06/2018","Corporate Asset Management","Central Utilities to Recharge","R2100"
"Wolverhampton City Council","http://opendatacommunities.org/id/metropolitan-district-council/wolverhampton","708251","Total Gas & Power Limited","171490830","765.56","Electricity","190472054","22/06/2018","Schools","St Paul�s Church of England (Aided) School","R2100"
"Wolverhampton City Council","http://opendatacommunities.org/id/metropolitan-district-council/wolverhampton","708251","Total Gas & Power Limited","171367223","84.97","Electricity","190472036","22/06/2018","Corporate Asset Management","Central Utilities to Recharge","R2100"
"Wolverhampton City Council","http://opendatacommunities.org/id/metropolitan-district-council/wolverhampton","708251","Total Gas & Power Limited","171367993","670.17","Electricity","190472023","22/06/2018","Schools","Westacre Infant School","R2100"
"Wolverhampton City Council","http://opendatacommunities.org/id/metropolitan-district-council/wolverhampton","708251","Total Gas & Power Limited","171493822","87.07","Electricity","190472158","22/06/2018","Corporate Asset Management","Central Utilities to Recharge","R2100"
"Wolverhampton City Council","http://opendatacommunities.org/id/metropolitan-district-council/wolverhampton","708251","Total Gas & Power Limited","171488905","96.98","Electricity","190472171","22/06/2018","Schools","Phoenix Nursery","R2100"
"Wolverhampton City Council","http://opendatacommunities.org/id/metropolitan-district-council/wolverhampton","708251","Total Gas & Power Limited","171488091","696.49","Electricity","190472122","22/06/2018","Schools","Lanesfield Primary School","R2100"
"Wolverhampton City Council","http://opendatacommunities.org/id/metropolitan-district-council/wolverhampton","708251","Total Gas & Power Limited","171334234","778.63","Electricity","190471991","22/06/2018","Schools","Christ Church (Tettenhall Wood) Infant School","R2100"
"Wolverhampton City Council","http://opendatacommunities.org/id/metropolitan-district-council/wolverhampton","708251","Total Gas & Power Limited","171488740","672.55","Electricity","190472174","22/06/2018","Schools","Wood End Primary School","R2100"
"Wolverhampton City Council","http://opendatacommunities.org/id/metropolitan-district-council/wolverhampton","708251","Total Gas & Power Limited","171512852","794.74","Electricity","190472206","22/06/2018","Schools","St Anthony�s Catholic Primary School","R2100"
"Wolverhampton City Council","http://opendatacommunities.org/id/metropolitan-district-council/wolverhampton","708251","Total Gas & Power Limited","171513039","726.71","Electricity","190472188","22/06/2018","Corporate Asset Management","Central Utilities to Recharge","R2100"
"Wolverhampton City Council","http://opendatacommunities.org/id/metropolitan-district-council/wolverhampton","708251","Total Gas & Power Limited","171334289","738.76","Electricity","190471986","22/06/2018","Corporate Asset Management","Central Utilities to Recharge","R2100"
"Wolverhampton City Council","http://opendatacommunities.org/id/metropolitan-district-council/wolverhampton","708251","Total Gas & Power Limited","171392270","746.69","Electricity","190472103","22/06/2018","Schools","Wodensfield Primary School","R2100"
"Wolverhampton City Council","http://opendatacommunities.org/id/metropolitan-district-council/wolverhampton","708251","Total Gas & Power Limited","171487596","96.87","Electricity","190472134","22/06/2018","Corporate Asset Management","Central Utilities to Recharge","R2100"
"Wolverhampton City Council","http://opendatacommunities.org/id/metropolitan-district-council/wolverhampton","708251","Total Gas & Power Limited","171368114","747.42","Electricity","190472021","22/06/2018","Schools","Long Knowle Primary School","R2100"
"Wolverhampton City Council","http://opendatacommunities.org/id/metropolitan-district-council/wolverhampton","708251","Total Gas & Power Limited","171488443","103.37","Electricity","190472113","22/06/2018","Transportation","Bridges & Subways","R2100"
"Wolverhampton City Council","http://opendatacommunities.org/id/metropolitan-district-council/wolverhampton","708251","Total Gas & Power Limited","171334212","788.39","Electricity","190471993","22/06/2018","Facilities Management","Management of Vacant Properties","R2100"
"Wolverhampton City Council","http://opendatacommunities.org/id/metropolitan-district-council/wolverhampton","708251","Total Gas & Power Limited","171393161","762.20","Electricity","190472079","22/06/2018","Schools","West Park Primary School","R2100"
"Wolverhampton City Council","http://opendatacommunities.org/id/metropolitan-district-council/wolverhampton","708251","Total Gas & Power Limited","171488641","104.19","Electricity","190472176","22/06/2018","Corporate Asset Management","Central Utilities to Recharge","R2100"
"Wolverhampton City Council","http://opendatacommunities.org/id/metropolitan-district-council/wolverhampton","708251","Total Gas & Power Limited","171513292","787.98","Electricity","190472179","22/06/2018","Corporate Asset Management","Central Utilities to Recharge","R2100"
"Wolverhampton City Council","http://opendatacommunities.org/id/metropolitan-district-council/wolverhampton","708251","Total Gas & Power Limited","171392314","107.87","Electricity","190472101","22/06/2018","Corporate Asset Management","Central Utilities to Recharge","R2100"
"Wolverhampton City Council","http://opendatacommunities.org/id/metropolitan-district-council/wolverhampton","708251","Total Gas & Power Limited","171392150","106.01","Electricity","190472104","22/06/2018","Schools","Christ Church (Tettenhall Wood) Infant School","R2100"
"Wolverhampton City Council","http://opendatacommunities.org/id/metropolitan-district-council/wolverhampton","708251","Total Gas & Power Limited","171487398","111.15","Electricity","190472139","22/06/2018","Corporate Asset Management","Central Utilities to Recharge","R2100"
"Wolverhampton City Council","http://opendatacommunities.org/id/metropolitan-district-council/wolverhampton","708251","Total Gas & Power Limited","171490940","98.73","Electricity","190472052","22/06/2018","Corporate Asset Management","Central Utilities to Recharge","R2100"
"Wolverhampton City Council","http://opendatacommunities.org/id/metropolitan-district-council/wolverhampton","708251","Total Gas & Power Limited","153357528","855.23","Electricity","190472242","22/06/2018","Schools","Bushbury Hill Primary School","R2100"
"Wolverhampton City Council","http://opendatacommunities.org/id/metropolitan-district-council/wolverhampton","708251","Total Gas & Power Limited","171512962","873.21","Electricity","190472195","22/06/2018","Schools","Claregate Primary School","R2100"
"Wolverhampton City Council","http://opendatacommunities.org/id/metropolitan-district-council/wolverhampton","708251","Total Gas & Power Limited","171512753","817.23","Electricity","190472211","22/06/2018","Schools","Dovecotes Primary School","R2100"
"Wolverhampton City Council","http://opendatacommunities.org/id/metropolitan-district-council/wolverhampton","708251","Total Gas & Power Limited","171512566","942.99","Electricity","190472215","22/06/2018","Corporate Asset Management","Central Utilities to Recharge","R2100"
"Wolverhampton City Council","http://opendatacommunities.org/id/metropolitan-district-council/wolverhampton","708251","Total Gas & Power Limited","171512544","983.50","Electricity","190472216","22/06/2018","Schools","Bantock Primary School","R2100"
"Wolverhampton City Council","http://opendatacommunities.org/id/metropolitan-district-council/wolverhampton","708251","Total Gas & Power Limited","149865732","1,010.36","Electricity","190472238","22/06/2018","Corporate Asset Management","Central Utilities to Recharge","R2100"
"Wolverhampton City Council","http://opendatacommunities.org/id/metropolitan-district-council/wolverhampton","708251","Total Gas & Power Limited","171488278","123.56","Electricity","190472120","22/06/2018","Corporate Asset Management","Central Utilities to Recharge","R2100"
"Wolverhampton City Council","http://opendatacommunities.org/id/metropolitan-district-council/wolverhampton","708251","Total Gas & Power Limited","171488762","995.26","Electricity","190472172","22/06/2018","Corporate Asset Management","Central Utilities to Recharge","R2100"
"Wolverhampton City Council","http://opendatacommunities.org/id/metropolitan-district-council/wolverhampton","708251","Total Gas & Power Limited","171512269","1,061.35","Electricity","190472229","22/06/2018","Schools","Oak Meadow Primary School","R2100"
"Wolverhampton City Council","http://opendatacommunities.org/id/metropolitan-district-council/wolverhampton","708251","Total Gas & Power Limited","171512940","1,177.33","Electricity","190472198","22/06/2018","Schools","St Luke�s Church of England Aided Primary School","R2100"
"Wolverhampton City Council","http://opendatacommunities.org/id/metropolitan-district-council/wolverhampton","708251","Total Gas & Power Limited","171513270","121.45","Electricity","190472181","22/06/2018","Schools","Dovecotes Primary School","R2100"
"Wolverhampton City Council","http://opendatacommunities.org/id/metropolitan-district-council/wolverhampton","708251","Total Gas & Power Limited","171512687","125.51","Electricity","190472230","22/06/2018","Corporate Asset Management","Central Utilities to Recharge","R2100"
"Wolverhampton City Council","http://opendatacommunities.org/id/metropolitan-district-council/wolverhampton","708251","Total Gas & Power Limited","171512368","120.42","Electricity","190472227","22/06/2018","Corporate Asset Management","Central Utilities to Recharge","R2100"
"Wolverhampton City Council","http://opendatacommunities.org/id/metropolitan-district-council/wolverhampton","708251","Total Gas & Power Limited","171367597","1,052.34","Electricity","190472030","22/06/2018","Corporate Asset Management","Central Utilities to Recharge","R2100"
"Wolverhampton City Council","http://opendatacommunities.org/id/metropolitan-district-council/wolverhampton","708251","Total Gas & Power Limited","171333222","126.92","Electricity","190472014","22/06/2018","Corporate Asset Management","Central Utilities to Recharge","R2100"
"Wolverhampton City Council","http://opendatacommunities.org/id/metropolitan-district-council/wolverhampton","708251","Total Gas & Power Limited","171488432","114.10","Electricity","190472114","22/06/2018","Corporate Asset Management","Central Utilities to Recharge","R2100"
"Wolverhampton City Council","http://opendatacommunities.org/id/metropolitan-district-council/wolverhampton","708251","Total Gas & Power Limited","171392820","114.42","Electricity","190472087","22/06/2018","Corporate Asset Management","Central Utilities to Recharge","R2100"
"Wolverhampton City Council","http://opendatacommunities.org/id/metropolitan-district-council/wolverhampton","708251","Total Gas & Power Limited","171490071","125.27","Electricity","190472073","22/06/2018","Corporate Asset Management","Central Utilities to Recharge","R2100"
"Wolverhampton City Council","http://opendatacommunities.org/id/metropolitan-district-council/wolverhampton","708251","Total Gas & Power Limited","171490181","905.05","Electricity","190472070","22/06/2018","Schools","Loxdale Primary School","R2100"
"Wolverhampton City Council","http://opendatacommunities.org/id/metropolitan-district-council/wolverhampton","708251","Total Gas & Power Limited","171512820","923.25","Electricity","190472209","22/06/2018","Corporate Asset Management","Central Utilities to Recharge","R2100"
"Wolverhampton City Council","http://opendatacommunities.org/id/metropolitan-district-council/wolverhampton","708251","Total Gas & Power Limited","171513237","955.69","Electricity","190472185","22/06/2018","Schools","Bilston Church of England Primary School","R2100"
"Wolverhampton City Council","http://opendatacommunities.org/id/metropolitan-district-council/wolverhampton","708251","Total Gas & Power Limited","171487354","445.62","Electricity","190472140","22/06/2018","Schools","Woodthorne Primary School","R2100"
"Wolverhampton City Council","http://opendatacommunities.org/id/metropolitan-district-council/wolverhampton","708251","Total Gas & Power Limited","171490203","61.87","Electricity","190472069","22/06/2018","Corporate Asset Management","Central Utilities to Recharge","R2100"
"Wolverhampton City Council","http://opendatacommunities.org/id/metropolitan-district-council/wolverhampton","708251","Total Gas & Power Limited","171367399","60.18","Electricity","190472033","22/06/2018","Operation & Maintenance of Existing Network","Rechargeable Works to Capital - Contract Annual Costs","R2100"
"Wolverhampton City Council","http://opendatacommunities.org/id/metropolitan-district-council/wolverhampton","708251","Total Gas & Power Limited","171490467","430.44","Electricity","190472064","22/06/2018","Schools","Christ Church (Church of England) Junior School","R2100"
"Wolverhampton City Council","http://opendatacommunities.org/id/metropolitan-district-council/wolverhampton","708251","Total Gas & Power Limited","171493932","57.23","Electricity","190472155","22/06/2018","Corporate Asset Management","Central Utilities to Recharge","R2100"
"Wolverhampton City Council","http://opendatacommunities.org/id/metropolitan-district-council/wolverhampton","708251","Total Gas & Power Limited","171488718","431.51","Electricity","190472175","22/06/2018","Corporate Asset Management","Central Utilities to Recharge","R2100"
"Wolverhampton City Council","http://opendatacommunities.org/id/metropolitan-district-council/wolverhampton","708251","Total Gas & Power Limited","171367366","59.53","Electricity","190472034","22/06/2018","Corporate Asset Management","Central Utilities to Recharge","R2100"
"Wolverhampton City Council","http://opendatacommunities.org/id/metropolitan-district-council/wolverhampton","708251","Total Gas & Power Limited","171392578","63.15","Electricity","190472096","22/06/2018","Corporate Asset Management","Central Utilities to Recharge","R2100"
"Wolverhampton City Council","http://opendatacommunities.org/id/metropolitan-district-council/wolverhampton","708251","Total Gas & Power Limited","171333409","54.85","Electricity","190472011","22/06/2018","Corporate Asset Management","Central Utilities to Recharge","R2100"
"Wolverhampton City Council","http://opendatacommunities.org/id/metropolitan-district-council/wolverhampton","708251","Total Gas & Power Limited","171488498","228.88","Electricity","190472112","22/06/2018","Corporate Asset Management","Central Utilities to Recharge","R2100"
"Wolverhampton City Council","http://opendatacommunities.org/id/metropolitan-district-council/wolverhampton","708251","Total Gas & Power Limited","171487684","526.48","Electricity","190472129","22/06/2018","Schools","St Patrick�s Catholic Primary School","R2100"
"Wolverhampton City Council","http://opendatacommunities.org/id/metropolitan-district-council/wolverhampton","708251","Total Gas & Power Limited","171487959","449.64","Electricity","190472125","22/06/2018","Corporate Asset Management","Central Utilities to Recharge","R2100"
"Wolverhampton City Council","http://opendatacommunities.org/id/metropolitan-district-council/wolverhampton","708251","Total Gas & Power Limited","171334311","483.64","Electricity","190471983","22/06/2018","Corporate Asset Management","Central Utilities to Recharge","R2100"
"Wolverhampton City Council","http://opendatacommunities.org/id/metropolitan-district-council/wolverhampton","708251","Total Gas & Power Limited","170125609","48.43","Electricity","190472091","22/06/2018","Corporate Asset Management","Central Utilities to Recharge","R2100"
"Wolverhampton City Council","http://opendatacommunities.org/id/metropolitan-district-council/wolverhampton","708251","Total Gas & Power Limited","171334223","43,976.29","Electricity","190471992","22/06/2018","Corporate Asset Management","Central Utilities to Recharge","R2100"
"Wolverhampton City Council","http://opendatacommunities.org/id/metropolitan-district-council/wolverhampton","708251","Total Gas & Power Limited","171489455","254.38","Electricity","190472165","22/06/2018","Corporate Asset Management","Central Utilities to Recharge","R2100"
"Wolverhampton City Council","http://opendatacommunities.org/id/metropolitan-district-council/wolverhampton","708251","Total Gas & Power Limited","171488355","14.07","Electricity","190472117","22/06/2018","Corporate Asset Management","Central Utilities to Recharge","R2100"
"Wolverhampton City Council","http://opendatacommunities.org/id/metropolitan-district-council/wolverhampton","708251","Total Gas & Power Limited","171367157","14.07","Electricity","190472039","22/06/2018","Corporate Asset Management","Central Utilities to Recharge","R2100"
"Wolverhampton City Council","http://opendatacommunities.org/id/metropolitan-district-council/wolverhampton","708251","Total Gas & Power Limited","171490632","14.07","Electricity","190472059","22/06/2018","Corporate Asset Management","Central Utilities to Recharge","R2100"
"Wolverhampton City Council","http://opendatacommunities.org/id/metropolitan-district-council/wolverhampton","708251","Total Gas & Power Limited","171494174","14.07","Electricity","190472154","22/06/2018","Corporate Asset Management","Central Utilities to Recharge","R2100"
"Wolverhampton City Council","http://opendatacommunities.org/id/metropolitan-district-council/wolverhampton","708251","Total Gas & Power Limited","171494240","14.07","Electricity","190472152","22/06/2018","Corporate Asset Management","Central Utilities to Recharge","R2100"
"Wolverhampton City Council","http://opendatacommunities.org/id/metropolitan-district-council/wolverhampton","708251","Total Gas & Power Limited","171513171","12.15","Electricity","190472184","22/06/2018","Corporate Asset Management","Central Utilities to Recharge","R2100"
"Wolverhampton City Council","http://opendatacommunities.org/id/metropolitan-district-council/wolverhampton","708251","Total Gas & Power Limited","171488070","14.77","Electricity","190472123","22/06/2018","Facilities Management","Management of Vacant Properties","R2100"
"Wolverhampton City Council","http://opendatacommunities.org/id/metropolitan-district-council/wolverhampton","708251","Total Gas & Power Limited","171487629","13.01","Electricity","190472132","22/06/2018","Corporate Asset Management","Central Utilities to Recharge","R2100"
"Wolverhampton City Council","http://opendatacommunities.org/id/metropolitan-district-council/wolverhampton","708251","Total Gas & Power Limited","171334157","251.95","Electricity","190471997","22/06/2018","Corporate Asset Management","Central Utilities to Recharge","R2100"
"Wolverhampton City Council","http://opendatacommunities.org/id/metropolitan-district-council/wolverhampton","708251","Total Gas & Power Limited","171489730","221.75","Electricity","190472077","22/06/2018","Schools","Ashmore Park Nursery","R2100"
"Wolverhampton City Council","http://opendatacommunities.org/id/metropolitan-district-council/wolverhampton","708251","Total Gas & Power Limited","171490160","15.84","Electricity","190472071","22/06/2018","Corporate Asset Management","Central Utilities to Recharge","R2100"
"Wolverhampton City Council","http://opendatacommunities.org/id/metropolitan-district-council/wolverhampton","708251","Total Gas & Power Limited","171392688","16.80","Electricity","190472092","22/06/2018","Corporate Asset Management","Central Utilities to Recharge","R2100"
"Wolverhampton City Council","http://opendatacommunities.org/id/metropolitan-district-council/wolverhampton","708251","Total Gas & Power Limited","171392501","17.04","Electricity","190472099","22/06/2018","Corporate Asset Management","Central Utilities to Recharge","R2100"
"Wolverhampton City Council","http://opendatacommunities.org/id/metropolitan-district-council/wolverhampton","708251","Total Gas & Power Limited","171491006","16.46","Electricity","190472051","22/06/2018","Corporate Asset Management","Central Utilities to Recharge","R2100"
"Wolverhampton City Council","http://opendatacommunities.org/id/metropolitan-district-council/wolverhampton","708251","Total Gas & Power Limited","171490577","15.95","Electricity","190472061","22/06/2018","Corporate Asset Management","Central Utilities to Recharge","R2100"
"Wolverhampton City Council","http://opendatacommunities.org/id/metropolitan-district-council/wolverhampton","708251","Total Gas & Power Limited","171489500","17.63","Electricity","190472164","22/06/2018","Corporate Asset Management","Central Utilities to Recharge","R2100"
"Wolverhampton City Council","http://opendatacommunities.org/id/metropolitan-district-council/wolverhampton","708251","Total Gas & Power Limited","171488399","18.15","Electricity","190472116","22/06/2018","Corporate Asset Management","Central Utilities to Recharge","R2100"
"Wolverhampton City Council","http://opendatacommunities.org/id/metropolitan-district-council/wolverhampton","708251","Total Gas & Power Limited","171333850","236.84","Electricity","190472005","22/06/2018","Corporate Asset Management","Central Utilities to Recharge","R2100"
"Wolverhampton City Council","http://opendatacommunities.org/id/metropolitan-district-council/wolverhampton","708251","Total Gas & Power Limited","171513017","18.82","Electricity","190472190","22/06/2018","Corporate Asset Management","Central Utilities to Recharge","R2100"
"Wolverhampton City Council","http://opendatacommunities.org/id/metropolitan-district-council/wolverhampton","708251","Total Gas & Power Limited","171512841","18.87","Electricity","190472207","22/06/2018","Corporate Asset Management","Central Utilities to Recharge","R2100"
"Wolverhampton City Council","http://opendatacommunities.org/id/metropolitan-district-council/wolverhampton","708251","Total Gas & Power Limited","170323719","232.59","Electricity","190472232","22/06/2018","Corporate Asset Management","Central Utilities to Recharge","R2100"
"Wolverhampton City Council","http://opendatacommunities.org/id/metropolitan-district-council/wolverhampton","708251","Total Gas & Power Limited","171512830","248.42","Electricity","190472208","22/06/2018","Corporate Asset Management","Central Utilities to Recharge","R2100"
"Wolverhampton City Council","http://opendatacommunities.org/id/metropolitan-district-council/wolverhampton","708251","Total Gas & Power Limited","171489169","20.10","Electricity","190472166","22/06/2018","Corporate Asset Management","Central Utilities to Recharge","R2100"
"Wolverhampton City Council","http://opendatacommunities.org/id/metropolitan-district-council/wolverhampton","708251","Total Gas & Power Limited","171490291","236.63","Electricity","190472065","22/06/2018","Corporate Asset Management","Central Utilities to Recharge","R2100"
"Wolverhampton City Council","http://opendatacommunities.org/id/metropolitan-district-council/wolverhampton","708251","Total Gas & Power Limited","171367058","251.82","Electricity","190472042","22/06/2018","Housing Revenue Account","Amounts to be Settled with Wolverhampton Homes","R2100"
"Wolverhampton City Council","http://opendatacommunities.org/id/metropolitan-district-council/wolverhampton","708251","Total Gas & Power Limited","171367300","20.35","Electricity","190472035","22/06/2018","Corporate Asset Management","Central Utilities to Recharge","R2100"
"Wolverhampton City Council","http://opendatacommunities.org/id/metropolitan-district-council/wolverhampton","708251","Total Gas & Power Limited","171392017","295.64","Electricity","190472110","22/06/2018","Corporate Asset Management","Central Utilities to Recharge","R2100"
"Wolverhampton City Council","http://opendatacommunities.org/id/metropolitan-district-council/wolverhampton","708251","Total Gas & Power Limited","171333057","265.56","Electricity","190472018","22/06/2018","Corporate Asset Management","Central Utilities to Recharge","R2100"
"Wolverhampton City Council","http://opendatacommunities.org/id/metropolitan-district-council/wolverhampton","708251","Total Gas & Power Limited","171392677","251.10","Electricity","190472093","22/06/2018","Corporate Asset Management","Central Utilities to Recharge","R2100"
"Wolverhampton City Council","http://opendatacommunities.org/id/metropolitan-district-council/wolverhampton","708251","Total Gas & Power Limited","171392303","265.36","Electricity","190472102","22/06/2018","Transportation","Bridges & Subways","R2100"
"Wolverhampton City Council","http://opendatacommunities.org/id/metropolitan-district-council/wolverhampton","708251","Total Gas & Power Limited","171490533","263.01","Electricity","190472063","22/06/2018","Corporate Asset Management","Central Utilities to Recharge","R2100"
"Wolverhampton City Council","http://opendatacommunities.org/id/metropolitan-district-council/wolverhampton","708251","Total Gas & Power Limited","171489851","282.61","Electricity","190472075","22/06/2018","Schools","Eastfield Nursery","R2100"
"Wolverhampton City Council","http://opendatacommunities.org/id/metropolitan-district-council/wolverhampton","708251","Total Gas & Power Limited","171493701","31.71","Electricity","190472160","22/06/2018","Corporate Asset Management","Central Utilities to Recharge","R2100"
"Wolverhampton City Council","http://opendatacommunities.org/id/metropolitan-district-council/wolverhampton","708251","Total Gas & Power Limited","171487739","289.59","Electricity","190472128","22/06/2018","Corporate Asset Management","Central Utilities to Recharge","R2100"
"Wolverhampton City Council","http://opendatacommunities.org/id/metropolitan-district-council/wolverhampton","708251","Total Gas & Power Limited","171490270","23.36","Electricity","190472066","22/06/2018","Operation & Maintenance of Existing Network","Rechargeable Works to Capital - Contract Annual Costs","R2100"
"Wolverhampton City Council","http://opendatacommunities.org/id/metropolitan-district-council/wolverhampton","708251","Total Gas & Power Limited","171512951","286.07","Electricity","190472196","22/06/2018","Corporate Asset Management","Central Utilities to Recharge","R2100"
"Wolverhampton City Council","http://opendatacommunities.org/id/metropolitan-district-council/wolverhampton","708251","Total Gas & Power Limited","171513259","26.38","Electricity","190472182","22/06/2018","Corporate Asset Management","Central Utilities to Recharge","R2100"
"Wolverhampton City Council","http://opendatacommunities.org/id/metropolitan-district-council/wolverhampton","708251","Total Gas & Power Limited","171487486","26.09","Electricity","190472137","22/06/2018","Corporate Asset Management","Central Utilities to Recharge","R2100"
"Wolverhampton City Council","http://opendatacommunities.org/id/metropolitan-district-council/wolverhampton","708251","Total Gas & Power Limited","171392039","26.54","Electricity","190472108","22/06/2018","Corporate Asset Management","Central Utilities to Recharge","R2100"
"Wolverhampton City Council","http://opendatacommunities.org/id/metropolitan-district-council/wolverhampton","708251","Total Gas & Power Limited","171393150","25.70","Electricity","190472080","22/06/2018","Corporate Asset Management","Central Utilities to Recharge","R2100"
"Wolverhampton City Council","http://opendatacommunities.org/id/metropolitan-district-council/wolverhampton","708251","Total Gas & Power Limited","171393073","286.91","Electricity","190472081","22/06/2018","Corporate Asset Management","Central Utilities to Recharge","R2100"
"Wolverhampton City Council","http://opendatacommunities.org/id/metropolitan-district-council/wolverhampton","708251","Total Gas & Power Limited","171392490","25.33","Electricity","190472100","22/06/2018","Corporate Asset Management","Central Utilities to Recharge","R2100"
"Wolverhampton City Council","http://opendatacommunities.org/id/metropolitan-district-council/wolverhampton","708251","Total Gas & Power Limited","171490126","29.61","Electricity","190472072","22/06/2018","Corporate Asset Management","Central Utilities to Recharge","R2100"
"Wolverhampton City Council","http://opendatacommunities.org/id/metropolitan-district-council/wolverhampton","708251","Total Gas & Power Limited","171487850","26.98","Electricity","190472126","22/06/2018","Corporate Asset Management","Central Utilities to Recharge","R2100"
"Wolverhampton City Council","http://opendatacommunities.org/id/metropolitan-district-council/wolverhampton","708251","Total Gas & Power Limited","171489114","26.84","Electricity","190472170","22/06/2018","Corporate Asset Management","Central Utilities to Recharge","R2100"
"Wolverhampton City Council","http://opendatacommunities.org/id/metropolitan-district-council/wolverhampton","708251","Total Gas & Power Limited","171512600","27.35","Electricity","190472214","22/06/2018","Corporate Asset Management","Central Utilities to Recharge","R2100"
"Wolverhampton City Council","http://opendatacommunities.org/id/metropolitan-district-council/wolverhampton","708251","Total Gas & Power Limited","171493866","30.49","Electricity","190472157","22/06/2018","Facilities Management","Management of Vacant Properties","R2100"
"Wolverhampton City Council","http://opendatacommunities.org/id/metropolitan-district-council/wolverhampton","708251","Total Gas & Power Limited","171513149","43.47","Electricity","190472186","22/06/2018","Corporate Asset Management","Central Utilities to Recharge","R2100"
"Wolverhampton City Council","http://opendatacommunities.org/id/metropolitan-district-council/wolverhampton","708251","Total Gas & Power Limited","171332991","28.73","Electricity","190472020","22/06/2018","Corporate Asset Management","Central Utilities to Recharge","R2100"
"Wolverhampton City Council","http://opendatacommunities.org/id/metropolitan-district-council/wolverhampton","708251","Total Gas & Power Limited","171490038","28.86","Electricity","190472074","22/06/2018","Corporate Asset Management","Central Utilities to Recharge","R2100"
"Wolverhampton City Council","http://opendatacommunities.org/id/metropolitan-district-council/wolverhampton","708251","Total Gas & Power Limited","171392787","28.98","Electricity","190472088","22/06/2018","Corporate Asset Management","Central Utilities to Recharge","R2100"
"Wolverhampton City Council","http://opendatacommunities.org/id/metropolitan-district-council/wolverhampton","708251","Total Gas & Power Limited","171490885","346.62","Electricity","190472053","22/06/2018","Corporate Asset Management","Central Utilities to Recharge","R2100"
"Wolverhampton City Council","http://opendatacommunities.org/id/metropolitan-district-council/wolverhampton","708251","Total Gas & Power Limited","171490786","42.42","Electricity","190472056","22/06/2018","Corporate Asset Management","Central Utilities to Recharge","R2100"
"Wolverhampton City Council","http://opendatacommunities.org/id/metropolitan-district-council/wolverhampton","708251","Total Gas & Power Limited","171491347","45.96","Electricity","190472044","22/06/2018","Facilities Management","Management of Vacant Properties","R2100"
"Wolverhampton City Council","http://opendatacommunities.org/id/metropolitan-district-council/wolverhampton","708251","Total Gas & Power Limited","171392138","38.98","Electricity","190472105","22/06/2018","Corporate Asset Management","Central Utilities to Recharge","R2100"
"Wolverhampton City Council","http://opendatacommunities.org/id/metropolitan-district-council/wolverhampton","708251","Total Gas & Power Limited","171393227","46.15","Electricity","190472078","22/06/2018","Corporate Asset Management","Central Utilities to Recharge","R2100"
"Wolverhampton City Council","http://opendatacommunities.org/id/metropolitan-district-council/wolverhampton","708251","Total Gas & Power Limited","171333410","40.14","Electricity","190472010","22/06/2018","Corporate Asset Management","Central Utilities to Recharge","R2100"
"Wolverhampton City Council","http://opendatacommunities.org/id/metropolitan-district-council/wolverhampton","708251","Total Gas & Power Limited","171512445","344.28","Electricity","190472223","22/06/2018","Corporate Asset Management","Central Utilities to Recharge","R2100"
"Wolverhampton City Council","http://opendatacommunities.org/id/metropolitan-district-council/wolverhampton","708251","Total Gas & Power Limited","171512456","39.90","Electricity","190472222","22/06/2018","Corporate Asset Management","Central Utilities to Recharge","R2100"
"Wolverhampton City Council","http://opendatacommunities.org/id/metropolitan-district-council/wolverhampton","708251","Total Gas & Power Limited","171367608","40.04","Electricity","190472029","22/06/2018","Corporate Asset Management","Central Utilities to Recharge","R2100"
"Wolverhampton City Council","http://opendatacommunities.org/id/metropolitan-district-council/wolverhampton","708251","Total Gas & Power Limited","171487630","46.83","Electricity","190472131","22/06/2018","Housing Revenue Account","Hostels / Outreach","R2100"
"Wolverhampton City Council","http://opendatacommunities.org/id/metropolitan-district-council/wolverhampton","708251","Total Gas & Power Limited","171490225","47.29","Electricity","190472068","22/06/2018","Schools","Holy Trinity Catholic Primary School","R2100"
"Wolverhampton City Council","http://opendatacommunities.org/id/metropolitan-district-council/wolverhampton","708251","Total Gas & Power Limited","171392512","46.51","Electricity","190472098","22/06/2018","Corporate Asset Management","Central Utilities to Recharge","R2100"
"Wolverhampton City Council","http://opendatacommunities.org/id/metropolitan-district-council/wolverhampton","708251","Total Gas & Power Limited","171392105","348.74","Electricity","190472107","22/06/2018","Housing Revenue Account","Hostels / Outreach","R2100"
"Wolverhampton City Council","http://opendatacommunities.org/id/metropolitan-district-council/wolverhampton","708251","Total Gas & Power Limited","171392963","49.54","Electricity","190472083","22/06/2018","Corporate Asset Management","Central Utilities to Recharge","R2100"
"Wolverhampton City Council","http://opendatacommunities.org/id/metropolitan-district-council/wolverhampton","708251","Total Gas & Power Limited","171495021","48.46","Electricity","190472142","22/06/2018","Schools","Bilston Church of England Primary School","R2100"
"Wolverhampton City Council","http://opendatacommunities.org/id/metropolitan-district-council/wolverhampton","708251","Total Gas & Power Limited","171333497","48.18","Electricity","190472008","22/06/2018","Schools","Merridale Primary School","R2100"
"Wolverhampton City Council","http://opendatacommunities.org/id/metropolitan-district-council/wolverhampton","708251","Total Gas & Power Limited","171493877","48.51","Electricity","190472156","22/06/2018","Operation & Maintenance of Existing Network","Rechargeable Works to Capital - Contract Annual Costs","R2100"
"Wolverhampton City Council","http://opendatacommunities.org/id/metropolitan-district-council/wolverhampton","708251","Total Gas & Power Limited","171513281","395.15","Electricity","190472180","22/06/2018","Corporate Asset Management","Central Utilities to Recharge","R2100"
"Wolverhampton City Council","http://opendatacommunities.org/id/metropolitan-district-council/wolverhampton","708251","Total Gas & Power Limited","171512324","415.90","Electricity","190472228","22/06/2018","Corporate Asset Management","Central Utilities to Recharge","R2100"
"Wolverhampton City Council","http://opendatacommunities.org/id/metropolitan-district-council/wolverhampton","708251","Total Gas & Power Limited","171494504","399.21","Electricity","190472149","22/06/2018","Schools","Bilston Nursery","R2100"
"Wolverhampton City Council","http://opendatacommunities.org/id/metropolitan-district-council/wolverhampton","708251","Total Gas & Power Limited","171494196","416.22","Electricity","190472153","22/06/2018","Schools","Colton Hills Community School","R2100"
"Wolverhampton City Council","http://opendatacommunities.org/id/metropolitan-district-council/wolverhampton","708251","Total Gas & Power Limited","171512863","390.83","Electricity","190472205","22/06/2018","Corporate Asset Management","Central Utilities to Recharge","R2100"
"Wolverhampton City Council","http://opendatacommunities.org/id/metropolitan-district-council/wolverhampton","708251","Total Gas & Power Limited","171333167","408.26","Electricity","190472016","22/06/2018","Corporate Asset Management","Central Utilities to Recharge","R2100"
"Wolverhampton City Council","http://opendatacommunities.org/id/metropolitan-district-council/wolverhampton","708251","Total Gas & Power Limited","171487431","391.96","Electricity","190472138","22/06/2018","Corporate Asset Management","Central Utilities to Recharge","R2100"
"Wolverhampton City Council","http://opendatacommunities.org/id/metropolitan-district-council/wolverhampton","708251","Total Gas & Power Limited","171487838","38.75","Electricity","190472127","22/06/2018","Corporate Asset Management","Central Utilities to Recharge","R2100"
"Wolverhampton City Council","http://opendatacommunities.org/id/metropolitan-district-council/wolverhampton","708251","Total Gas & Power Limited","171333200","38.29","Electricity","190472015","22/06/2018","Corporate Asset Management","Central Utilities to Recharge","R2100"
"Wolverhampton City Council","http://opendatacommunities.org/id/metropolitan-district-council/wolverhampton","708251","Total Gas & Power Limited","171512907","38.75","Electricity","190472201","22/06/2018","Facilities Management","Management of Vacant Properties","R2100"
"Wolverhampton City Council","http://opendatacommunities.org/id/metropolitan-district-council/wolverhampton","708251","Total Gas & Power Limited","171512225","325.75","Electricity","190472233","22/06/2018","Corporate Asset Management","Central Utilities to Recharge","R2100"
"Wolverhampton City Council","http://opendatacommunities.org/id/metropolitan-district-council/wolverhampton","708251","Total Gas & Power Limited","171512236","326.03","Electricity","190472231","22/06/2018","Corporate Asset Management","Central Utilities to Recharge","R2100"
"Wolverhampton City Council","http://opendatacommunities.org/id/metropolitan-district-council/wolverhampton","708251","Total Gas & Power Limited","171512610","36.05","Electricity","190472213","22/06/2018","Corporate Asset Management","Central Utilities to Recharge","R2100"
"Wolverhampton City Council","http://opendatacommunities.org/id/metropolitan-district-council/wolverhampton","708251","Total Gas & Power Limited","171513325","36.06","Electricity","190472183","22/06/2018","Corporate Asset Management","Central Utilities to Recharge","R2100"
"Wolverhampton City Council","http://opendatacommunities.org/id/metropolitan-district-council/wolverhampton","708251","Total Gas & Power Limited","171494977","35.69","Electricity","190472143","22/06/2018","Schools","Penn Hall Special School","R2100"
"Wolverhampton City Council","http://opendatacommunities.org/id/metropolitan-district-council/wolverhampton","708251","Total Gas & Power Limited","171489488","35.72","Electricity","190472163","22/06/2018","Corporate Asset Management","Central Utilities to Recharge","R2100"
"Wolverhampton City Council","http://opendatacommunities.org/id/metropolitan-district-council/wolverhampton","708251","Total Gas & Power Limited","171334070","35.53","Electricity","190472001","22/06/2018","Corporate Asset Management","Central Utilities to Recharge","R2100"
"Wolverhampton City Council","http://opendatacommunities.org/id/metropolitan-district-council/wolverhampton","708251","Total Gas & Power Limited","171334069","34.03","Electricity","190472002","22/06/2018","Corporate Asset Management","Central Utilities to Recharge","R2100"
"Wolverhampton City Council","http://opendatacommunities.org/id/metropolitan-district-council/wolverhampton","708251","Total Gas & Power Limited","171333960","298.25","Electricity","190472004","22/06/2018","Corporate Asset Management","Central Utilities to Recharge","R2100"
"Wolverhampton City Council","http://opendatacommunities.org/id/metropolitan-district-council/wolverhampton","708251","Total Gas & Power Limited","171493712","33.95","Electricity","190472159","22/06/2018","Corporate Asset Management","Central Utilities to Recharge","R2100"
"Wolverhampton City Council","http://opendatacommunities.org/id/metropolitan-district-council/wolverhampton","708251","Total Gas & Power Limited","171488509","33.48","Electricity","190472111","22/06/2018","Schools","Bilston Church of England Primary School","R2100"
"Wolverhampton City Council","http://opendatacommunities.org/id/metropolitan-district-council/wolverhampton","708251","Total Gas & Power Limited","171513182","344.39","Electricity","190472197","22/06/2018","Corporate Asset Management","Central Utilities to Recharge","R2100"
"Wolverhampton City Council","http://opendatacommunities.org/id/metropolitan-district-council/wolverhampton","708251","Total Gas & Power Limited","171333134","32.68","Electricity","190472017","22/06/2018","Corporate Asset Management","Central Utilities to Recharge","R2100"
"Wolverhampton City Council","http://opendatacommunities.org/id/metropolitan-district-council/wolverhampton","708251","Total Gas & Power Limited","171333046","319.96","Electricity","190472019","22/06/2018","Corporate Asset Management","Central Utilities to Recharge","R2100"
"Wolverhampton City Council","http://opendatacommunities.org/id/metropolitan-district-council/wolverhampton","708251","Total Gas & Power Limited","171392700","22.83","Electricity","190472090","22/06/2018","Corporate Asset Management","Central Utilities to Recharge","R2100"
"Wolverhampton City Council","http://opendatacommunities.org/id/metropolitan-district-council/wolverhampton","708251","Total Gas & Power Limited","171490269","40.88","Electricity","190472067","22/06/2018","Operation & Maintenance of Existing Network","Rechargeable Works to Capital - Contract Annual Costs","R2100"
"Wolverhampton City Council","http://opendatacommunities.org/id/metropolitan-district-council/wolverhampton","708251","Total Gas & Power Limited","171490621","310.97","Electricity","190472060","22/06/2018","Schools","Woodthorne Primary School","R2100"
"Wolverhampton City Council","http://opendatacommunities.org/id/metropolitan-district-council/wolverhampton","708251","Total Gas & Power Limited","171392886","315.84","Electricity","190472086","22/06/2018","Corporate Asset Management","Central Utilities to Recharge","R2100"
"Wolverhampton City Council","http://opendatacommunities.org/id/metropolitan-district-council/wolverhampton","708251","Total Gas & Power Limited","171368015","20.66","Electricity","190472022","22/06/2018","Corporate Asset Management","Central Utilities to Recharge","R2100"
"Wolverhampton City Council","http://opendatacommunities.org/id/metropolitan-district-council/wolverhampton","708251","Total Gas & Power Limited","171494933","22.56","Electricity","190472144","22/06/2018","Corporate Asset Management","Central Utilities to Recharge","R2100"
"Wolverhampton City Council","http://opendatacommunities.org/id/metropolitan-district-council/wolverhampton","708251","Total Gas & Power Limited","171487607","21.94","Electricity","190472133","22/06/2018","Corporate Asset Management","Central Utilities to Recharge","R2100"
"Wolverhampton City Council","http://opendatacommunities.org/id/metropolitan-district-council/wolverhampton","708251","Total Gas & Power Limited","171494680","21.69","Electricity","190472148","22/06/2018","Corporate Asset Management","Central Utilities to Recharge","R2100"
"Wolverhampton City Council","http://opendatacommunities.org/id/metropolitan-district-council/wolverhampton","708251","Total Gas & Power Limited","171512973","1,083.63","Electricity","190472194","22/06/2018","Corporate Asset Management","Central Utilities to Recharge","R2100"
"Wolverhampton City Council","http://opendatacommunities.org/id/metropolitan-district-council/wolverhampton","708251","Total Gas & Power Limited","171512742","320.88","Electricity","190472212","22/06/2018","Corporate Asset Management","Central Utilities to Recharge","R2100"
"Wolverhampton City Council","http://opendatacommunities.org/id/metropolitan-district-council/wolverhampton","708251","Total Gas & Power Limited","171512874","1,086.72","Electricity","190472204","22/06/2018","Schools","Rakegate Primary School","R2100"
"Wolverhampton City Council","http://opendatacommunities.org/id/metropolitan-district-council/wolverhampton","708251","Total Gas & Power Limited","171333552","1,188.51","Electricity","190472219","22/06/2018","Corporate Asset Management","Central Utilities to Recharge","R2100"
"Wolverhampton City Council","http://opendatacommunities.org/id/metropolitan-district-council/wolverhampton","708251","Total Gas & Power Limited","171333805","375.75","Electricity","190472006","22/06/2018","Corporate Asset Management","Central Utilities to Recharge","R2100"
"Wolverhampton City Council","http://opendatacommunities.org/id/metropolitan-district-council/wolverhampton","708251","Total Gas & Power Limited","171334180","1,137.13","Electricity","190471996","22/06/2018","Corporate Asset Management","Central Utilities to Recharge","R2100"
"Wolverhampton City Council","http://opendatacommunities.org/id/metropolitan-district-council/wolverhampton","708251","Total Gas & Power Limited","171334278","1,333.55","Electricity","190471987","22/06/2018","Corporate Asset Management","Central Utilities to Recharge","R2100"
"Wolverhampton City Council","http://opendatacommunities.org/id/metropolitan-district-council/wolverhampton","708251","Total Gas & Power Limited","171334256","1,292.79","Electricity","190471989","22/06/2018","Corporate Asset Management","Central Utilities to Recharge","R2100"
"Wolverhampton City Council","http://opendatacommunities.org/id/metropolitan-district-council/wolverhampton","708251","Total Gas & Power Limited","144949953","1,194.81","Electricity","190472236","22/06/2018","Corporate Asset Management","Central Utilities to Recharge","R2100"
"Wolverhampton City Council","http://opendatacommunities.org/id/metropolitan-district-council/wolverhampton","708251","Total Gas & Power Limited","171512918","1,269.08","Electricity","190472200","22/06/2018","Schools","Stowheath Primary School","R2100"
"Wolverhampton City Council","http://opendatacommunities.org/id/metropolitan-district-council/wolverhampton","708251","Total Gas & Power Limited","171513006","1,256.43","Electricity","190472191","22/06/2018","Schools","Wilkinson Primary School","R2100"
"Wolverhampton City Council","http://opendatacommunities.org/id/metropolitan-district-council/wolverhampton","708251","Total Gas & Power Limited","171512478","130.11","Electricity","190472220","22/06/2018","Corporate Asset Management","Central Utilities to Recharge","R2100"
"Wolverhampton City Council","http://opendatacommunities.org/id/metropolitan-district-council/wolverhampton","708251","Total Gas & Power Limited","171392600","132.78","Electricity","190472095","22/06/2018","Corporate Asset Management","Central Utilities to Recharge","R2100"
"Wolverhampton City Council","http://opendatacommunities.org/id/metropolitan-district-council/wolverhampton","708251","Total Gas & Power Limited","171334388","1,406.82","Electricity","190471979","22/06/2018","Schools","Fallings Park Primary School","R2100"
"Wolverhampton City Council","http://opendatacommunities.org/id/metropolitan-district-council/wolverhampton","708251","Total Gas & Power Limited","171487332","135.60","Electricity","190472141","22/06/2018","Schools","St Anthony�s Catholic Primary School","R2100"
"Wolverhampton City Council","http://opendatacommunities.org/id/metropolitan-district-council/wolverhampton","708251","Total Gas & Power Limited","171489158","1,517.24","Electricity","190472167","22/06/2018","Schools","Warstones Primary School","R2100"
"Wolverhampton City Council","http://opendatacommunities.org/id/metropolitan-district-council/wolverhampton","708251","Total Gas & Power Limited","171334146","1,503.58","Electricity","190471998","22/06/2018","Schools","Springdale Primary School","R2100"
"Wolverhampton City Council","http://opendatacommunities.org/id/metropolitan-district-council/wolverhampton","708251","Total Gas & Power Limited","171334290","2,213.66","Electricity","190471985","22/06/2018","Corporate Asset Management","Central Utilities to Recharge","R2100"
"Wolverhampton City Council","http://opendatacommunities.org/id/metropolitan-district-council/wolverhampton","708251","Total Gas & Power Limited","171512885","147.98","Electricity","190472203","22/06/2018","Corporate Asset Management","Central Utilities to Recharge","R2100"
"Wolverhampton City Council","http://opendatacommunities.org/id/metropolitan-district-council/wolverhampton","708251","Total Gas & Power Limited","171513314","1,501.77","Electricity","190472178","22/06/2018","Corporate Asset Management","Central Utilities to Recharge","R2100"
"Wolverhampton City Council","http://opendatacommunities.org/id/metropolitan-district-council/wolverhampton","708251","Total Gas & Power Limited","144883073","1,702.08","Electricity","190472235","22/06/2018","Corporate Asset Management","Central Utilities to Recharge","R2100"
"Wolverhampton City Council","http://opendatacommunities.org/id/metropolitan-district-council/wolverhampton","708251","Total Gas & Power Limited","149890713","2,559.76","Electricity","190472239","22/06/2018","Corporate Asset Management","Central Utilities to Recharge","R2100"
"Wolverhampton City Council","http://opendatacommunities.org/id/metropolitan-district-council/wolverhampton","708251","Total Gas & Power Limited","171512808","1,674.11","Electricity","190472210","22/06/2018","Corporate Asset Management","Central Utilities to Recharge","R2100"
"Wolverhampton City Council","http://opendatacommunities.org/id/metropolitan-district-council/wolverhampton","708251","Total Gas & Power Limited","171513028","1,681.80","Electricity","190472189","22/06/2018","Corporate Asset Management","Central Utilities to Recharge","R2100"
"Wolverhampton City Council","http://opendatacommunities.org/id/metropolitan-district-council/wolverhampton","708251","Total Gas & Power Limited","171513226","2,055.33","Electricity","190472187","22/06/2018","Corporate Asset Management","Central Utilities to Recharge","R2100"
"Wolverhampton City Council","http://opendatacommunities.org/id/metropolitan-district-council/wolverhampton","708251","Total Gas & Power Limited","171334400","1,943.05","Electricity","190471977","22/06/2018","Corporate Asset Management","Central Utilities to Recharge","R2100"
"Wolverhampton City Council","http://opendatacommunities.org/id/metropolitan-district-council/wolverhampton","708251","Total Gas & Power Limited","171488751","136.24","Electricity","190472173","22/06/2018","Corporate Asset Management","Central Utilities to Recharge","R2100"
"Wolverhampton City Council","http://opendatacommunities.org/id/metropolitan-district-council/wolverhampton","708251","Total Gas & Power Limited","171488400","8.37","Electricity","190472115","22/06/2018","Corporate Asset Management","Central Utilities to Recharge","R2100"
"Wolverhampton City Council","http://opendatacommunities.org/id/metropolitan-district-council/wolverhampton","708251","Total Gas & Power Limited","171367400","151.30","Electricity","190472032","22/06/2018","Corporate Asset Management","Central Utilities to Recharge","R2100"
"Wolverhampton City Council","http://opendatacommunities.org/id/metropolitan-district-council/wolverhampton","708251","Total Gas & Power Limited","171490775","140.76","Electricity","190472057","22/06/2018","Corporate Asset Management","Central Utilities to Recharge","R2100"
"Wolverhampton City Council","http://opendatacommunities.org/id/metropolitan-district-council/wolverhampton","708251","Total Gas & Power Limited","171491325","247.41","Electricity","190472045","22/06/2018","Corporate Asset Management","Central Utilities to Recharge","R2100"
"Wolverhampton City Council","http://opendatacommunities.org/id/metropolitan-district-council/wolverhampton","708251","Total Gas & Power Limited","171333277","206.40","Electricity","190472012","22/06/2018","Corporate Asset Management","Central Utilities to Recharge","R2100"
"Wolverhampton City Council","http://opendatacommunities.org/id/metropolitan-district-council/wolverhampton","708251","Total Gas & Power Limited","171488069","206.89","Electricity","190472124","22/06/2018","Schools","Bushbury Nursery","R2100"
"Wolverhampton City Council","http://opendatacommunities.org/id/metropolitan-district-council/wolverhampton","708251","Total Gas & Power Limited","171334410","10,741.51","Electricity","190471976","22/06/2018","Corporate Asset Management","Central Utilities to Recharge","R2100"
"Wolverhampton City Council","http://opendatacommunities.org/id/metropolitan-district-council/wolverhampton","708251","Total Gas & Power Limited","171393029","217.11","Electricity","190472082","22/06/2018","Corporate Asset Management","Central Utilities to Recharge","R2100"
"Wolverhampton City Council","http://opendatacommunities.org/id/metropolitan-district-council/wolverhampton","708251","Total Gas & Power Limited","171392523","7.53","Electricity","190472097","22/06/2018","Corporate Asset Management","Central Utilities to Recharge","R2100"
"Wolverhampton City Council","http://opendatacommunities.org/id/metropolitan-district-council/wolverhampton","708251","Total Gas & Power Limited","171392974","192.82","Electricity","190472084","22/06/2018","Corporate Asset Management","Central Utilities to Recharge","R2100"
"Wolverhampton City Council","http://opendatacommunities.org/id/metropolitan-district-council/wolverhampton","708251","Total Gas & Power Limited","171493668","189.48","Electricity","190472161","22/06/2018","Corporate Asset Management","Central Utilities to Recharge","R2100"
"Wolverhampton City Council","http://opendatacommunities.org/id/metropolitan-district-council/wolverhampton","708251","Total Gas & Power Limited","171488300","198.39","Electricity","190472119","22/06/2018","Corporate Asset Management","Central Utilities to Recharge","R2100"
"Wolverhampton City Council","http://opendatacommunities.org/id/metropolitan-district-council/wolverhampton","708251","Total Gas & Power Limited","171512896","211.21","Electricity","190472202","22/06/2018","Facilities Management","Management of Vacant Properties","R2100"
"Wolverhampton City Council","http://opendatacommunities.org/id/metropolitan-district-council/wolverhampton","708251","Total Gas & Power Limited","161293687a","8,742.16","Electricity","190472234","22/06/2018","Corporate Asset Management","Central Utilities to Recharge","R2100"
"Wolverhampton City Council","http://opendatacommunities.org/id/metropolitan-district-council/wolverhampton","708251","Total Gas & Power Limited","171487662","212.53","Electricity","190472130","22/06/2018","Corporate Asset Management","Central Utilities to Recharge","R2100"
"Wolverhampton City Council","http://opendatacommunities.org/id/metropolitan-district-council/wolverhampton","708251","Total Gas & Power Limited","171334124","6,150.33","Electricity","190472000","22/06/2018","Corporate Asset Management","Central Utilities to Recharge","R2100"
"Wolverhampton City Council","http://opendatacommunities.org/id/metropolitan-district-council/wolverhampton","708251","Total Gas & Power Limited","171334355","7,802.91","Electricity","190471980","22/06/2018","Corporate Asset Management","Central Utilities to Recharge","R2100"
"Wolverhampton City Council","http://opendatacommunities.org/id/metropolitan-district-council/wolverhampton","708251","Total Gas & Power Limited","171334245","4,839.32","Electricity","190471990","22/06/2018","Corporate Asset Management","Central Utilities to Recharge","R2100"
"Wolverhampton City Council","http://opendatacommunities.org/id/metropolitan-district-council/wolverhampton","708251","Total Gas & Power Limited","171334344","5,501.65","Electricity","190471981","22/06/2018","Schools","Colton Hills Community School","R2100"
"Wolverhampton City Council","http://opendatacommunities.org/id/metropolitan-district-council/wolverhampton","708251","Total Gas & Power Limited","171490643","197.45","Electricity","190472058","22/06/2018","Corporate Asset Management","Central Utilities to Recharge","R2100"
"Wolverhampton City Council","http://opendatacommunities.org/id/metropolitan-district-council/wolverhampton","708252","Total Hygiene Limited","17/0476/DFG","4,085.00","Grants paid out to other organisations","190469819","20/06/2018","-","Disabled Facilities Grants","C5011"
"Wolverhampton City Council","http://opendatacommunities.org/id/metropolitan-district-council/wolverhampton","708280","Trade UK (Was Screwfix Direct Limited)","0882072412","872.46","Cleaning Supplies and Materials","130216971","13/06/2018","Independent Living Service","Independent Living Service","R2705"
"Wolverhampton City Council","http://opendatacommunities.org/id/metropolitan-district-council/wolverhampton","708280","Trade UK (Was Screwfix Direct Limited)","0882072412","229.95","Materials","130216971","13/06/2018","Independent Living Service","Independent Living Service","R4007"
"Wolverhampton City Council","http://opendatacommunities.org/id/metropolitan-district-council/wolverhampton","708285","Traffix","23913","1,340.00","TPP - Traffic Management","130217869","01/06/2018","Highways Maintenance","Highway & Land Drainage","R5050"
"Wolverhampton City Council","http://opendatacommunities.org/id/metropolitan-district-council/wolverhampton","708285","Traffix","23914","110.00","TPP - Traffic Management","130217870","01/06/2018","Highways Maintenance","Highway & Land Drainage","R5050"
"Wolverhampton City Council","http://opendatacommunities.org/id/metropolitan-district-council/wolverhampton","708293","Transport Door Solutions Limited","46908","3.75","Equipment - Purchase","190467656","08/06/2018","Fleet Services","Fleet Management","R4000"
"Wolverhampton City Council","http://opendatacommunities.org/id/metropolitan-district-council/wolverhampton","708293","Transport Door Solutions Limited","46908","0.20","Equipment - Purchase","190467656","08/06/2018","Fleet Services","Fleet Management","R4000"
"Wolverhampton City Council","http://opendatacommunities.org/id/metropolitan-district-council/wolverhampton","708293","Transport Door Solutions Limited","46908","0.42","Equipment - Purchase","190467656","08/06/2018","Fleet Services","Fleet Management","R4000"
"Wolverhampton City Council","http://opendatacommunities.org/id/metropolitan-district-council/wolverhampton","708293","Transport Door Solutions Limited","46908","16.10","Equipment - Purchase","190467656","08/06/2018","Fleet Services","Fleet Management","R4000"
"Wolverhampton City Council","http://opendatacommunities.org/id/metropolitan-district-council/wolverhampton","708293","Transport Door Solutions Limited","46908","9.10","Equipment - Purchase","190467656","08/06/2018","Fleet Services","Fleet Management","R4000"
"Wolverhampton City Council","http://opendatacommunities.org/id/metropolitan-district-council/wolverhampton","708293","Transport Door Solutions Limited","46908","0.10","Equipment - Purchase","190467656","08/06/2018","Fleet Services","Fleet Management","R4000"
"Wolverhampton City Council","http://opendatacommunities.org/id/metropolitan-district-council/wolverhampton","708293","Transport Door Solutions Limited","46908","3.78","Equipment - Purchase","190467656","08/06/2018","Fleet Services","Fleet Management","R4000"
"Wolverhampton City Council","http://opendatacommunities.org/id/metropolitan-district-council/wolverhampton","708293","Transport Door Solutions Limited","46908","28.98","Equipment - Purchase","190467656","08/06/2018","Fleet Services","Fleet Management","R4000"
"Wolverhampton City Council","http://opendatacommunities.org/id/metropolitan-district-council/wolverhampton","708293","Transport Door Solutions Limited","46908","26.88","Equipment - Purchase","190467656","08/06/2018","Fleet Services","Fleet Management","R4000"
"Wolverhampton City Council","http://opendatacommunities.org/id/metropolitan-district-council/wolverhampton","708293","Transport Door Solutions Limited","46908","6.50","Equipment - Purchase","190467656","08/06/2018","Fleet Services","Fleet Management","R4000"
"Wolverhampton City Council","http://opendatacommunities.org/id/metropolitan-district-council/wolverhampton","708293","Transport Door Solutions Limited","46908","14.50","Equipment - Purchase","190467656","08/06/2018","Fleet Services","Fleet Management","R4000"
"Wolverhampton City Council","http://opendatacommunities.org/id/metropolitan-district-council/wolverhampton","708301","Treasured Memories Limited","21015","59.05","Materials","130217705","06/06/2018","Bereavement Services","Crematorium","R4007"
"Wolverhampton City Council","http://opendatacommunities.org/id/metropolitan-district-council/wolverhampton","708301","Treasured Memories Limited","21086","118.49","Materials","130219554","29/06/2018","Bereavement Services","Crematorium","R4007"
"Wolverhampton City Council","http://opendatacommunities.org/id/metropolitan-district-council/wolverhampton","708321","Trinity College London","1-1047917558","2,511.69","Exam Expenses (Non-Employee)","130217706","06/06/2018","School Planning & Resources","Music Support Team","R4630"
"Wolverhampton City Council","http://opendatacommunities.org/id/metropolitan-district-council/wolverhampton","708321","Trinity College London","1-510713241","385.00","Services - Professional Fees","130220147","29/06/2018","Visitor Economy","Education And Access","R4400"
"Wolverhampton City Council","http://opendatacommunities.org/id/metropolitan-district-council/wolverhampton","708333","TRL Limited","88605097","150.00","Computing - Purchase of Software","130218188","27/06/2018","Transportation","Transportation General","R4531"
"Wolverhampton City Council","http://opendatacommunities.org/id/metropolitan-district-council/wolverhampton","708333","TRL Limited","88604942","120.00","Computing - Purchase of Software","130216721","13/06/2018","Transportation","Transportation General","R4531"
"Wolverhampton City Council","http://opendatacommunities.org/id/metropolitan-district-council/wolverhampton","708334","Trojan Consultants Limited","16394","1,850.00","Computing - Purchase of Software","130220148","22/06/2018","Safeguarding","Court of Protection, Funerals and Protection of Property","R4531"
"Wolverhampton City Council","http://opendatacommunities.org/id/metropolitan-district-council/wolverhampton","708339","Trowers & Hamlins Llp","2665978","2,830.00","Services - Professional Fees","130217984","01/06/2018","School Planning & Resources","PFI Scheme - Heath Park & St Matthias","R4400"
"Wolverhampton City Council","http://opendatacommunities.org/id/metropolitan-district-council/wolverhampton","708348","Truvox International Limited","255844","145.58","Equipment - Purchase","130217519","20/06/2018","Cleaning","Cleaning of Buildings - General","R4000"
"Wolverhampton City Council","http://opendatacommunities.org/id/metropolitan-district-council/wolverhampton","708356","Tudor Environmental","220353","15.15","Materials","130218293","27/06/2018","Environmental Maintenance","Ground Maintenance East","R4007"
"Wolverhampton City Council","http://opendatacommunities.org/id/metropolitan-district-council/wolverhampton","708356","Tudor Environmental","220353","45.45","Materials","130218293","27/06/2018","Environmental Maintenance","Ground Maintenance East","R4007"
"Wolverhampton City Council","http://opendatacommunities.org/id/metropolitan-district-council/wolverhampton","708356","Tudor Environmental","220353","30.20","Materials","130218293","27/06/2018","Environmental Maintenance","Ground Maintenance East","R4007"
"Wolverhampton City Council","http://opendatacommunities.org/id/metropolitan-district-council/wolverhampton","708356","Tudor Environmental","220353","121.20","Materials","130218293","27/06/2018","Environmental Maintenance","Ground Maintenance East","R4007"
"Wolverhampton City Council","http://opendatacommunities.org/id/metropolitan-district-council/wolverhampton","708356","Tudor Environmental","220758","187.29","Equipment - Purchase","130218784","13/06/2018","Bereavement Services","Cemeteries","R4000"
"Wolverhampton City Council","http://opendatacommunities.org/id/metropolitan-district-council/wolverhampton","708356","Tudor Environmental","220309","305.00","Equipment - Purchase","130217986","06/06/2018","Environmental Maintenance","Ground Maintenance East","R4000"
"Wolverhampton City Council","http://opendatacommunities.org/id/metropolitan-district-council/wolverhampton","708356","Tudor Environmental","220309","11.52","Materials","130217986","06/06/2018","Environmental Maintenance","Ground Maintenance East","R4007"
"Wolverhampton City Council","http://opendatacommunities.org/id/metropolitan-district-council/wolverhampton","708356","Tudor Environmental","220883","36.90","Materials","130218785","13/06/2018","Environmental Maintenance","Ground Maintenance East","R4007"
"Wolverhampton City Council","http://opendatacommunities.org/id/metropolitan-district-council/wolverhampton","708358","Tunstall Healthcare (UK) Limited","3IN/10318546","3,750.00","Equipment - Purchase","130217871","20/06/2018","Independent Living Service","Telecare","R4000"
"Wolverhampton City Council","http://opendatacommunities.org/id/metropolitan-district-council/wolverhampton","708358","Tunstall Healthcare (UK) Limited","3IN/10318546","5,445.00","Equipment - Purchase","130217871","20/06/2018","Independent Living Service","Telecare","R4000"
"Wolverhampton City Council","http://opendatacommunities.org/id/metropolitan-district-council/wolverhampton","708358","Tunstall Healthcare (UK) Limited","3IN/10318546","104.00","Equipment - Purchase","130217871","20/06/2018","Independent Living Service","Telecare","R4000"
"Wolverhampton City Council","http://opendatacommunities.org/id/metropolitan-district-council/wolverhampton","708361","Turnock Limited","45093","4,259.00","Materials","130220149","27/06/2018","Street Lighting","Christmas Illuminations","R4007"
"Wolverhampton City Council","http://opendatacommunities.org/id/metropolitan-district-council/wolverhampton","708374","Tyddyn Hen Limited","203826","162.00","Provisions (Not for resale)","130218189","27/06/2018","School Planning & Resources","Towers Outdoor Education Centre","R4101"
"Wolverhampton City Council","http://opendatacommunities.org/id/metropolitan-district-council/wolverhampton","708374","Tyddyn Hen Limited","203767","145.65","Provisions (Not for resale)","130215274","06/06/2018","School Planning & Resources","Towers Outdoor Education Centre","R4101"
"Wolverhampton City Council","http://opendatacommunities.org/id/metropolitan-district-council/wolverhampton","708375","Tylers Of Bilston Limited","431541","410.00","Equipment - Purchase","130218422","15/06/2018","Learning Disability Provider","Duke Street Bungalows","R4000"
"Wolverhampton City Council","http://opendatacommunities.org/id/metropolitan-district-council/wolverhampton","708375","Tylers Of Bilston Limited","431541","25.00","Equipment - Purchase","130218422","15/06/2018","Learning Disability Provider","Duke Street Bungalows","R4000"
"Wolverhampton City Council","http://opendatacommunities.org/id/metropolitan-district-council/wolverhampton","708418","Univar Limited","91515977","114.80","Materials","130217146","13/06/2018","Leisure Services","Bert Williams Leisure Centre","R4007"
"Wolverhampton City Council","http://opendatacommunities.org/id/metropolitan-district-council/wolverhampton","708418","Univar Limited","91498972","292.11","Materials","130217707","13/06/2018","Leisure Services","Bert Williams Leisure Centre","R4007"
"Wolverhampton City Council","http://opendatacommunities.org/id/metropolitan-district-council/wolverhampton","708418","Univar Limited","91526211","370.71","Materials","130218628","27/06/2018","Leisure Services","Bert Williams Leisure Centre","R4007"
"Wolverhampton City Council","http://opendatacommunities.org/id/metropolitan-district-council/wolverhampton","708418","Univar Limited","91513124","164.05","Materials","130216529","13/06/2018","Leisure Services","Central Baths","R4007"
"Wolverhampton City Council","http://opendatacommunities.org/id/metropolitan-district-council/wolverhampton","708422","University Of Birmingham","AEBF200/24638","780.00","Training Expenses","130218629","20/06/2018","Public Service Reform","Workforce Development","R1650"
"Wolverhampton City Council","http://opendatacommunities.org/id/metropolitan-district-council/wolverhampton","708436","Univ. Of Wolverhampton (Little Scholars)","45062638REISSUE","480.00","TPP - Child Care provided for client","130220578","27/06/2018","Adult Education","Discretionary Fund","R5034"
"Wolverhampton City Council","http://opendatacommunities.org/id/metropolitan-district-council/wolverhampton","708436","Univ. Of Wolverhampton (Little Scholars)","45063556","240.00","TPP - Child Care provided for client","130209779","13/06/2018","Adult Education","Discretionary Fund","R5034"
"Wolverhampton City Council","http://opendatacommunities.org/id/metropolitan-district-council/wolverhampton","708436","Univ. Of Wolverhampton (Little Scholars)","45063555","400.00","TPP - Child Care provided for client","130209778","13/06/2018","Adult Education","Discretionary Fund","R5034"
"Wolverhampton City Council","http://opendatacommunities.org/id/metropolitan-district-council/wolverhampton","708448","AECOM Infrastructure & Environment UK Ltd","28348641","37,970.00","Construction and Conversion","130217147","13/06/2018","-","GF - Accessing Growth Fund","C1100"
"Wolverhampton City Council","http://opendatacommunities.org/id/metropolitan-district-council/wolverhampton","708448","AECOM Infrastructure & Environment UK Ltd","28347719","3,343.09","Services - Professional Fees","130216013","06/06/2018","Transportation","Bridges & Subways","R4400"
"Wolverhampton City Council","http://opendatacommunities.org/id/metropolitan-district-council/wolverhampton","708448","AECOM Infrastructure & Environment UK Ltd","28349899","5,395.43","Services - Professional Fees","130217879","20/06/2018","Transportation","Section 278 and 38 Agreements","R4400"
"Wolverhampton City Council","http://opendatacommunities.org/id/metropolitan-district-council/wolverhampton","708448","AECOM Infrastructure & Environment UK Ltd","28349915","1,214.29","Services - Professional Fees","130217883","20/06/2018","City Development","Bilston Public Open Space (ERDF)","R4400"
"Wolverhampton City Council","http://opendatacommunities.org/id/metropolitan-district-council/wolverhampton","708448","AECOM Infrastructure & Environment UK Ltd","28349908","5,640.50","Services - Professional Fees","130217880","20/06/2018","Transportation","Strategy & Development","R4400"
"Wolverhampton City Council","http://opendatacommunities.org/id/metropolitan-district-council/wolverhampton","708448","AECOM Infrastructure & Environment UK Ltd","28349910","2,714.40","Construction and Conversion","130217881","20/06/2018","-","GF - Accessing Growth Fund","C1100"
"Wolverhampton City Council","http://opendatacommunities.org/id/metropolitan-district-council/wolverhampton","708448","AECOM Infrastructure & Environment UK Ltd","28349882","6,179.78","Construction and Conversion","130217876","20/06/2018","-","Safety Programme","C1100"
"Wolverhampton City Council","http://opendatacommunities.org/id/metropolitan-district-council/wolverhampton","708448","AECOM Infrastructure & Environment UK Ltd","28349875","7,899.68","Services - Professional Fees","130217875","20/06/2018","Street Lighting","St Lighting Ext Recharges","R4400"
"Wolverhampton City Council","http://opendatacommunities.org/id/metropolitan-district-council/wolverhampton","708448","AECOM Infrastructure & Environment UK Ltd","28349063","6,809.58","Construction and Conversion","130217298","20/06/2018","-","GF - Accessing Growth Fund","C1100"
"Wolverhampton City Council","http://opendatacommunities.org/id/metropolitan-district-council/wolverhampton","708448","AECOM Infrastructure & Environment UK Ltd","28349057","4,774.94","Construction and Conversion","130217297","20/06/2018","-","GF - Accessing Growth Fund","C1100"
"Wolverhampton City Council","http://opendatacommunities.org/id/metropolitan-district-council/wolverhampton","708448","AECOM Infrastructure & Environment UK Ltd","28349913","2,781.20","Construction and Conversion","130217882","20/06/2018","-","Wolverhampton Interchange","C1100"
"Wolverhampton City Council","http://opendatacommunities.org/id/metropolitan-district-council/wolverhampton","708448","AECOM Infrastructure & Environment UK Ltd","28349864","4,729.34","Construction and Conversion","130217874","20/06/2018","-","Safety Programme","C1100"
"Wolverhampton City Council","http://opendatacommunities.org/id/metropolitan-district-council/wolverhampton","708448","AECOM Infrastructure & Environment UK Ltd","28349886","2,333.83","Construction and Conversion","130217877","20/06/2018","-","Safety Programme","C1100"
"Wolverhampton City Council","http://opendatacommunities.org/id/metropolitan-district-council/wolverhampton","708448","AECOM Infrastructure & Environment UK Ltd","28349887","4,132.54","Construction and Conversion","130217878","20/06/2018","-","Safety Programme","C1100"
"Wolverhampton City Council","http://opendatacommunities.org/id/metropolitan-district-council/wolverhampton","708448","AECOM Infrastructure & Environment UK Ltd","28348576","57.59","Construction and Conversion","130216723","13/06/2018","-","Integrated Transport","C1100"
"Wolverhampton City Council","http://opendatacommunities.org/id/metropolitan-district-council/wolverhampton","708448","AECOM Infrastructure & Environment UK Ltd","28348579","3,665.57","Construction and Conversion","130216724","13/06/2018","-","Safety Programme","C1100"
"Wolverhampton City Council","http://opendatacommunities.org/id/metropolitan-district-council/wolverhampton","708448","AECOM Infrastructure & Environment UK Ltd","28349620","1,385.88","Services - Professional Fees","130217872","20/06/2018","Housing","Wholly Owned Company - Operations","R4400"
"Wolverhampton City Council","http://opendatacommunities.org/id/metropolitan-district-council/wolverhampton","708448","AECOM Infrastructure & Environment UK Ltd","28349627","5,395.27","Services - Professional Fees","130217873","20/06/2018","Housing","Wholly Owned Company - Operations","R4400"
"Wolverhampton City Council","http://opendatacommunities.org/id/metropolitan-district-council/wolverhampton","708448","AECOM Infrastructure & Environment UK Ltd","28347769","7,722.24","Services - Professional Fees","130216014","06/06/2018","Operation & Maintenance of Existing Network","Condition Surveys","R4400"
"Wolverhampton City Council","http://opendatacommunities.org/id/metropolitan-district-council/wolverhampton","708448","AECOM Infrastructure & Environment UK Ltd","28347770","13,008.90","Services - Professional Fees","130216015","06/06/2018","Operation & Maintenance of Existing Network","Condition Surveys","R4400"
"Wolverhampton City Council","http://opendatacommunities.org/id/metropolitan-district-council/wolverhampton","708448","AECOM Infrastructure & Environment UK Ltd","28348041","309.52","Construction and Conversion","130216261","08/06/2018","-","Integrated Transport","C1100"
"Wolverhampton City Council","http://opendatacommunities.org/id/metropolitan-district-council/wolverhampton","708448","AECOM Infrastructure & Environment UK Ltd","28347718","6,513.12","Construction and Conversion","130216012","06/06/2018","-","GF - Accessing Growth Fund","C1100"
"Wolverhampton City Council","http://opendatacommunities.org/id/metropolitan-district-council/wolverhampton","708467","Valuation Office Agency","25000011102018","3,108.60","Services - Consultants","130217708","20/06/2018","Planning","Planning","R4404"
"Wolverhampton City Council","http://opendatacommunities.org/id/metropolitan-district-council/wolverhampton","708481","Venue Catering Partner Limited","29564","2,225.88","Education trips, Holidays, Outings & Activities","130218424","13/06/2018","Headstart","Headstart - Young People Engagement","R4970"
"Wolverhampton City Council","http://opendatacommunities.org/id/metropolitan-district-council/wolverhampton","708481","Venue Catering Partner Limited","29565","1,724.96","Education trips, Holidays, Outings & Activities","130218425","13/06/2018","Headstart","Headstart - Young People Engagement","R4970"
"Wolverhampton City Council","http://opendatacommunities.org/id/metropolitan-district-council/wolverhampton","708483","Veolia Es (UK) Limited","OP/I524059","114.40","TPP - Waste Disposal","130218636","08/06/2018","Environmental Maintenance","Ground Maintenance East","R5003"
"Wolverhampton City Council","http://opendatacommunities.org/id/metropolitan-district-council/wolverhampton","708483","Veolia Es (UK) Limited","OP/I524059","90.20","TPP - Waste Disposal","130218636","08/06/2018","Environmental Maintenance","Arbor Scheme","R5003"
"Wolverhampton City Council","http://opendatacommunities.org/id/metropolitan-district-council/wolverhampton","708483","Veolia Es (UK) Limited","OP/I524060","302.72","TPP - Waste Disposal","130218637","08/06/2018","Environmental Maintenance","Ground Maintenance East","R5003"
"Wolverhampton City Council","http://opendatacommunities.org/id/metropolitan-district-council/wolverhampton","708484","Verifone Services UK&Ireland Limited","7500907617","33.00","Equipment - Hire","130217719","13/06/2018","Catering","Civic Centre Catering","R4001"
"Wolverhampton City Council","http://opendatacommunities.org/id/metropolitan-district-council/wolverhampton","708484","Verifone Services UK&Ireland Limited","7500883714","24.24","Equipment - Hire","130217713","15/06/2018","Leisure Services","Bert Williams Leisure Centre Caf�","R4001"
"Wolverhampton City Council","http://opendatacommunities.org/id/metropolitan-district-council/wolverhampton","708484","Verifone Services UK&Ireland Limited","7500889826","24.24","Equipment - Hire","130217715","15/06/2018","Leisure Services","Bert Williams Leisure Centre Caf�","R4001"
"Wolverhampton City Council","http://opendatacommunities.org/id/metropolitan-district-council/wolverhampton","708484","Verifone Services UK&Ireland Limited","7500906798","24.24","Equipment - Hire","130217718","15/06/2018","Leisure Services","Bert Williams Leisure Centre Caf�","R4001"
"Wolverhampton City Council","http://opendatacommunities.org/id/metropolitan-district-council/wolverhampton","708484","Verifone Services UK&Ireland Limited","7500872125","55.00","Equipment - Hire","130220152","22/06/2018","Leisure Services","Bert Williams Leisure Centre Caf�","R4001"
"Wolverhampton City Council","http://opendatacommunities.org/id/metropolitan-district-council/wolverhampton","708503","Virk Cut Price","REC24/MAY18","35.70","Publications","130218428","27/06/2018","Public Service Reform","Members Expenses","R4310"
"Wolverhampton City Council","http://opendatacommunities.org/id/metropolitan-district-council/wolverhampton","708503","Virk Cut Price","REC14/MAY18","19.70","Publications","130218426","27/06/2018","Public Service Reform","Members Expenses","R4310"
"Wolverhampton City Council","http://opendatacommunities.org/id/metropolitan-district-council/wolverhampton","708503","Virk Cut Price","REC22/MAY18","173.00","Publications","130218427","27/06/2018","Public Service Reform","Members Expenses","R4310"
"Wolverhampton City Council","http://opendatacommunities.org/id/metropolitan-district-council/wolverhampton","708503","Virk Cut Price","REC14/APR18","19.00","Publications","130217522","20/06/2018","Public Service Reform","Members Expenses","R4310"
"Wolverhampton City Council","http://opendatacommunities.org/id/metropolitan-district-council/wolverhampton","708503","Virk Cut Price","REC22/APR18","166.40","Publications","130217523","20/06/2018","Public Service Reform","Members Expenses","R4310"
"Wolverhampton City Council","http://opendatacommunities.org/id/metropolitan-district-council/wolverhampton","708503","Virk Cut Price","REC24/APR18","32.80","Publications","130217524","20/06/2018","Public Service Reform","Members Expenses","R4310"
"Wolverhampton City Council","http://opendatacommunities.org/id/metropolitan-district-council/wolverhampton","708542","W.V.Howe Limited","237307","62.69","Equipment - Catering","130220153","27/06/2018","Catering","Education Catering - General Overheads","R4010"
"Wolverhampton City Council","http://opendatacommunities.org/id/metropolitan-district-council/wolverhampton","708542","W.V.Howe Limited","236692","416.92","Equipment - Catering","130218638","13/06/2018","Catering","Education Catering - General Overheads","R4010"
"Wolverhampton City Council","http://opendatacommunities.org/id/metropolitan-district-council/wolverhampton","708542","W.V.Howe Limited","238177","14.61","Equipment - Catering","130220428","29/06/2018","Catering","Education Catering - General Overheads","R4010"
"Wolverhampton City Council","http://opendatacommunities.org/id/metropolitan-district-council/wolverhampton","708544","Wade Building Services Limited","19551","4,425.00","Equipment - Hire","130216373","13/06/2018","Central Corporate Budgets","Civic Events","R4001"
"Wolverhampton City Council","http://opendatacommunities.org/id/metropolitan-district-council/wolverhampton","708544","Wade Building Services Limited","16067","300.00","Equipment - Hire","130219790","20/06/2018","Central Corporate Budgets","Civic Events","R4001"
"Wolverhampton City Council","http://opendatacommunities.org/id/metropolitan-district-council/wolverhampton","708554","Walsall Healthcare NHS Trust","G068123","640.00","TPP - Public Health Contracts","130218791","08/06/2018","Starting and Developing Well","Sexual Health","R5060"
"Wolverhampton City Council","http://opendatacommunities.org/id/metropolitan-district-council/wolverhampton","708554","Walsall Healthcare NHS Trust","G068149","8,211.00","TPP - Public Health Contracts","130218792","20/06/2018","Starting and Developing Well","Sexual Health","R5060"
"Wolverhampton City Council","http://opendatacommunities.org/id/metropolitan-district-council/wolverhampton","708554","Walsall Healthcare NHS Trust","G068258","1,344.00","TPP - Public Health Contracts","130218793","20/06/2018","Starting and Developing Well","Sexual Health","R5060"
"Wolverhampton City Council","http://opendatacommunities.org/id/metropolitan-district-council/wolverhampton","708554","Walsall Healthcare NHS Trust","G068353","576.00","TPP - Public Health Contracts","130218794","20/06/2018","Starting and Developing Well","Sexual Health","R5060"
"Wolverhampton City Council","http://opendatacommunities.org/id/metropolitan-district-council/wolverhampton","708555","Walsall Mbc","697547","12,864.00","Services - Professional Fees","130217153","13/06/2018","Strategic Organisation Development","Black Country Technical Assistance","R4400"
"Wolverhampton City Council","http://opendatacommunities.org/id/metropolitan-district-council/wolverhampton","708555","Walsall Mbc","697548","13,473.00","Services - Professional Fees","130217154","13/06/2018","Strategic Organisation Development","Black Country Technical Assistance","R4400"
"Wolverhampton City Council","http://opendatacommunities.org/id/metropolitan-district-council/wolverhampton","708566","Warners Private Hire","54","1,764.00","Client Transport","130218954","29/06/2018","Special Educational Needs","Special - Transport","R3042"
"Wolverhampton City Council","http://opendatacommunities.org/id/metropolitan-district-council/wolverhampton","708581","Wates Construction Limited","110153","110,429.00","Construction and Conversion","130219278","15/06/2018","-","Fire Safety Improvements","C1100"
"Wolverhampton City Council","http://opendatacommunities.org/id/metropolitan-district-council/wolverhampton","708581","Wates Construction Limited","110168","241,672.00","Construction and Conversion","130219935","22/06/2018","-","Roof Refurbishment Programme","C1100"
"Wolverhampton City Council","http://opendatacommunities.org/id/metropolitan-district-council/wolverhampton","708581","Wates Construction Limited","110028","272,601.00","Construction and Conversion","130219934","22/06/2018","-","Decent Homes - Stock Improvements","C1100"
"Wolverhampton City Council","http://opendatacommunities.org/id/metropolitan-district-council/wolverhampton","708588","WBP Visual Solutions Limited","110734","899.00","Services - Professional Fees","130217884","20/06/2018","Visitor Economy","Education And Access","R4400"
"Wolverhampton City Council","http://opendatacommunities.org/id/metropolitan-district-council/wolverhampton","708601","Webgibb Welding Limited","C6844","85.00","R&M - Departmental planned (external)","130219936","27/06/2018","Maintenance Programme","Centralised R&M","R2001"
"Wolverhampton City Council","http://opendatacommunities.org/id/metropolitan-district-council/wolverhampton","708640","West Mercia Supplies","C220118","18.99","Equipment - Purchase","130219093","13/06/2018","Schools","St Paul�s Church of England (Aided) School","R4000"
"Wolverhampton City Council","http://opendatacommunities.org/id/metropolitan-district-council/wolverhampton","708640","West Mercia Supplies","C218961","43.11","Equipment - Purchase","130219092","13/06/2018","Schools","St Paul�s Church of England (Aided) School","R4000"
"Wolverhampton City Council","http://opendatacommunities.org/id/metropolitan-district-council/wolverhampton","708640","West Mercia Supplies","C220743","16.14","Equipment - Purchase","130219095","13/06/2018","Schools","St Paul�s Church of England (Aided) School","R4000"
"Wolverhampton City Council","http://opendatacommunities.org/id/metropolitan-district-council/wolverhampton","708640","West Mercia Supplies","C220173","15.67","Equipment - Purchase","130219094","13/06/2018","Schools","St Paul�s Church of England (Aided) School","R4000"
"Wolverhampton City Council","http://opendatacommunities.org/id/metropolitan-district-council/wolverhampton","708649","West Midlands Employers","10196","6,250.00","Subscriptions","130219562","20/06/2018","Human Resources","HR Advice","R4701"
"Wolverhampton City Council","http://opendatacommunities.org/id/metropolitan-district-council/wolverhampton","708649","West Midlands Employers","WOL_010431","220.00","Staff Advertising Costs","130219056","20/06/2018","The Hub","Central Advertising","R1700"
"Wolverhampton City Council","http://opendatacommunities.org/id/metropolitan-district-council/wolverhampton","708649","West Midlands Employers","WOL_010432","220.00","Staff Advertising Costs","130219057","20/06/2018","The Hub","Central Advertising","R1700"
"Wolverhampton City Council","http://opendatacommunities.org/id/metropolitan-district-council/wolverhampton","708649","West Midlands Employers","10198","-60.00","Training Expenses","130219564","20/06/2018","Public Service Reform","Centralised Training","R1650"
"Wolverhampton City Council","http://opendatacommunities.org/id/metropolitan-district-council/wolverhampton","708649","West Midlands Employers","10197","-60.00","Training Expenses","130219563","20/06/2018","Public Service Reform","Centralised Training","R1650"
"Wolverhampton City Council","http://opendatacommunities.org/id/metropolitan-district-council/wolverhampton","708650","West Midlands Fire Service","600038459","15,155.70","TPP - Social Care Support Services","130217525","20/06/2018","Independent Living Service","Telecare","R5501"
"Wolverhampton City Council","http://opendatacommunities.org/id/metropolitan-district-council/wolverhampton","708656","West Midlands Travel Limited","XASI/00106904","627.00","Public Transport","130218430","15/06/2018","Special Educational Needs","Secondary- Transport","R3300"
"Wolverhampton City Council","http://opendatacommunities.org/id/metropolitan-district-council/wolverhampton","708656","West Midlands Travel Limited","XASI/00107061","266.00","Public Transport","130218431","15/06/2018","Special Educational Needs","Secondary- Transport","R3300"
"Wolverhampton City Council","http://opendatacommunities.org/id/metropolitan-district-council/wolverhampton","708656","West Midlands Travel Limited","XASI/00107397","1,108.00","Public Transport","130218433","20/06/2018","Special Educational Needs","Secondary- Transport","R3300"
"Wolverhampton City Council","http://opendatacommunities.org/id/metropolitan-district-council/wolverhampton","708656","West Midlands Travel Limited","XASI/00107235","365.75","Public Transport","130218432","20/06/2018","Special Educational Needs","Secondary- Transport","R3300"
"Wolverhampton City Council","http://opendatacommunities.org/id/metropolitan-district-council/wolverhampton","708656","West Midlands Travel Limited","SLIN/00039871","2,580.00","Public Transport","130218429","20/06/2018","Adult Education","Discretionary Fund","R3300"
"Wolverhampton City Council","http://opendatacommunities.org/id/metropolitan-district-council/wolverhampton","708656","West Midlands Travel Limited","SLIN/00039871","13.40","Comms - Postage","130218429","20/06/2018","Adult Education","Discretionary Fund","R4503"
"Wolverhampton City Council","http://opendatacommunities.org/id/metropolitan-district-council/wolverhampton","708656","West Midlands Travel Limited","XASI/00107560","950.00","Public Transport","130218434","27/06/2018","Special Educational Needs","Secondary- Transport","R3300"
"Wolverhampton City Council","http://opendatacommunities.org/id/metropolitan-district-council/wolverhampton","708656","West Midlands Travel Limited","SLIN/00039931","21,128.95","Payroll Control Account - Travel Card Scheme","130218190","27/06/2018","-","General Fund Balance Sheet","B3350"
"Wolverhampton City Council","http://opendatacommunities.org/id/metropolitan-district-council/wolverhampton","708656","West Midlands Travel Limited","XASI/00107720","153.00","Public Transport","130220429","27/06/2018","Special Educational Needs","Secondary- Transport","R3300"
"Wolverhampton City Council","http://opendatacommunities.org/id/metropolitan-district-council/wolverhampton","708677","WHampton Homes Limited-Property Service","2600024127","3,787.53","Construction and Conversion","130209262","22/06/2018","-","Adaptations for People with Disabilites","C1100"
"Wolverhampton City Council","http://opendatacommunities.org/id/metropolitan-district-council/wolverhampton","708700","Wildlife Trust For B�Ham & Black Cty","913","4,675.00","Services - Professional Fees","130218639","08/06/2018","Planning","Planning","R4400"
"Wolverhampton City Council","http://opendatacommunities.org/id/metropolitan-district-council/wolverhampton","708705","Willenhall Engine Centre","65358","223.40","Services - Professional Fees","190471942","22/06/2018","Fleet Services","Fleet Management","R4400"
"Wolverhampton City Council","http://opendatacommunities.org/id/metropolitan-district-council/wolverhampton","708708","William Gough Limited","84585","19,000.00","Construction and Conversion","130216379","13/06/2018","-","Co-Location Programme","C1100"
"Wolverhampton City Council","http://opendatacommunities.org/id/metropolitan-district-council/wolverhampton","708708","William Gough Limited","84230","867.45","R&M - Departmental planned (external)","130211432","13/06/2018","Strategic Organisation Development","Penn Library","R2001"
"Wolverhampton City Council","http://opendatacommunities.org/id/metropolitan-district-council/wolverhampton","708708","William Gough Limited","84574","398.47","R&M - Departmental planned (external)","130216021","06/06/2018","Maintenance Programme","Civic Centre Repairs & Maintenance","R2001"
"Wolverhampton City Council","http://opendatacommunities.org/id/metropolitan-district-council/wolverhampton","708708","William Gough Limited","C2384","-2,800.00","R&M - Departmental planned (external)","130215854","06/06/2018","Visitor Economy","Makers Dozen","R2001"
"Wolverhampton City Council","http://opendatacommunities.org/id/metropolitan-district-council/wolverhampton","708708","William Gough Limited","84573","594.46","R&M - Departmental planned (external)","130216020","06/06/2018","Markets","Bilston Market and Licensed Operations","R2001"
"Wolverhampton City Council","http://opendatacommunities.org/id/metropolitan-district-council/wolverhampton","708708","William Gough Limited","84562","155.17","R&M - Departmental planned (external)","130215603","06/06/2018","Maintenance Programme","Centralised R&M","R2001"
"Wolverhampton City Council","http://opendatacommunities.org/id/metropolitan-district-council/wolverhampton","708708","William Gough Limited","84556","100.26","R&M - Departmental planned (external)","130215600","06/06/2018","Maintenance Programme","Centralised R&M","R2001"
"Wolverhampton City Council","http://opendatacommunities.org/id/metropolitan-district-council/wolverhampton","708708","William Gough Limited","84563","263.85","R&M - Departmental planned (external)","130215604","06/06/2018","Markets","Wednesfield Street Market","R2001"
"Wolverhampton City Council","http://opendatacommunities.org/id/metropolitan-district-council/wolverhampton","708708","William Gough Limited","84624","87.53","R&M - Departmental planned (external)","130217386","20/06/2018","Maintenance Programme","Centralised R&M","R2001"
"Wolverhampton City Council","http://opendatacommunities.org/id/metropolitan-district-council/wolverhampton","708708","William Gough Limited","84621","51.53","R&M - Departmental planned (external)","130217384","20/06/2018","Maintenance Programme","Centralised R&M","R2001"
"Wolverhampton City Council","http://opendatacommunities.org/id/metropolitan-district-council/wolverhampton","708708","William Gough Limited","84413","697.55","R&M - Departmental planned (external)","130214312","27/06/2018","Markets","Bilston Market and Licensed Operations","R2001"
"Wolverhampton City Council","http://opendatacommunities.org/id/metropolitan-district-council/wolverhampton","708708","William Gough Limited","84495","615.19","R&M - Departmental planned (external)","130215124","27/06/2018","Maintenance Programme","Centralised R&M","R2001"
"Wolverhampton City Council","http://opendatacommunities.org/id/metropolitan-district-council/wolverhampton","708708","William Gough Limited","84425","197.12","R&M - Departmental planned (external)","130214321","27/06/2018","Maintenance Programme","Centralised R&M","R2001"
"Wolverhampton City Council","http://opendatacommunities.org/id/metropolitan-district-council/wolverhampton","708708","William Gough Limited","84464","47.03","R&M - Departmental planned (external)","130214513","27/06/2018","Maintenance Programme","Centralised R&M","R2001"
"Wolverhampton City Council","http://opendatacommunities.org/id/metropolitan-district-council/wolverhampton","708708","William Gough Limited","84421","40.00","R&M - Departmental planned (external)","130214479","27/06/2018","Maintenance Programme","Centralised R&M","R2001"
"Wolverhampton City Council","http://opendatacommunities.org/id/metropolitan-district-council/wolverhampton","708708","William Gough Limited","84627","65.52","R&M - Departmental planned (external)","130217721","27/06/2018","Markets","Wednesfield Street Market","R2001"
"Wolverhampton City Council","http://opendatacommunities.org/id/metropolitan-district-council/wolverhampton","708708","William Gough Limited","84543","375.89","R&M - Departmental planned (external)","130215292","27/06/2018","Markets","Wolverhampton Indoor and Open Market","R2001"
"Wolverhampton City Council","http://opendatacommunities.org/id/metropolitan-district-council/wolverhampton","708708","William Gough Limited","84371","85.78","R&M - Departmental planned (external)","130213882","27/06/2018","Markets","Bilston Market and Licensed Operations","R2001"
"Wolverhampton City Council","http://opendatacommunities.org/id/metropolitan-district-council/wolverhampton","708708","William Gough Limited","84401","371.54","R&M - Departmental planned (external)","130214017","27/06/2018","Markets","Wolverhampton Indoor and Open Market","R2001"
"Wolverhampton City Council","http://opendatacommunities.org/id/metropolitan-district-council/wolverhampton","708708","William Gough Limited","84408","308.83","R&M - Departmental planned (external)","130214308","27/06/2018","Markets","Bilston Market and Licensed Operations","R2001"
"Wolverhampton City Council","http://opendatacommunities.org/id/metropolitan-district-council/wolverhampton","708708","William Gough Limited","83684","547.52","R&M - Departmental planned (external)","130203043","27/06/2018","Markets","Wednesfield Street Market","R2001"
"Wolverhampton City Council","http://opendatacommunities.org/id/metropolitan-district-council/wolverhampton","708708","William Gough Limited","84473","40.00","R&M - Departmental planned (external)","130214521","27/06/2018","Markets","Bilston Market and Licensed Operations","R2001"
"Wolverhampton City Council","http://opendatacommunities.org/id/metropolitan-district-council/wolverhampton","708708","William Gough Limited","84282","85.33","R&M - Departmental planned (external)","130212305","27/06/2018","Maintenance Programme","Civic Centre Repairs & Maintenance","R2001"
"Wolverhampton City Council","http://opendatacommunities.org/id/metropolitan-district-council/wolverhampton","708708","William Gough Limited","84465","40.00","R&M - Departmental planned (external)","130214514","27/06/2018","Maintenance Programme","Centralised R&M","R2001"
"Wolverhampton City Council","http://opendatacommunities.org/id/metropolitan-district-council/wolverhampton","708708","William Gough Limited","84596","79.58","R&M - Departmental planned (external)","130216540","27/06/2018","Maintenance Programme","Centralised R&M","R2001"
"Wolverhampton City Council","http://opendatacommunities.org/id/metropolitan-district-council/wolverhampton","708708","William Gough Limited","84251","73.69","Services - Consultants","130220292","27/06/2018","Planning","Building Consultancy","R4404"
"Wolverhampton City Council","http://opendatacommunities.org/id/metropolitan-district-council/wolverhampton","708708","William Gough Limited","84631","40.00","R&M - Departmental planned (external)","130217723","27/06/2018","Maintenance Programme","Centralised R&M","R2001"
"Wolverhampton City Council","http://opendatacommunities.org/id/metropolitan-district-council/wolverhampton","708708","William Gough Limited","84494","40.00","R&M - Departmental planned (external)","130215123","27/06/2018","Facilities Management","Caretakers Community Centre","R2001"
"Wolverhampton City Council","http://opendatacommunities.org/id/metropolitan-district-council/wolverhampton","708708","William Gough Limited","83976","434.98","R&M - Departmental planned (external)","130207144","01/06/2018","Maintenance Programme","Centralised R&M","R2001"
"Wolverhampton City Council","http://opendatacommunities.org/id/metropolitan-district-council/wolverhampton","708708","William Gough Limited","84170","293.67","R&M - Departmental planned (external)","130210757","01/06/2018","Maintenance Programme","Centralised R&M","R2001"
"Wolverhampton City Council","http://opendatacommunities.org/id/metropolitan-district-council/wolverhampton","708708","William Gough Limited","84604","2,225.78","R&M - Departmental planned (external)","130216730","13/06/2018","Maintenance Programme","Centralised R&M","R2001"
"Wolverhampton City Council","http://opendatacommunities.org/id/metropolitan-district-council/wolverhampton","708708","William Gough Limited","C2400","-131.00","R&M - Departmental planned (external)","130216556","13/06/2018","Maintenance Programme","Centralised R&M","R2001"
"Wolverhampton City Council","http://opendatacommunities.org/id/metropolitan-district-council/wolverhampton","708708","William Gough Limited","84598","171.03","R&M - Departmental planned (external)","130216542","13/06/2018","Maintenance Programme","Centralised R&M","R2001"
"Wolverhampton City Council","http://opendatacommunities.org/id/metropolitan-district-council/wolverhampton","708708","William Gough Limited","C2388","-296.00","R&M - Departmental planned (external)","130216546","13/06/2018","Bereavement Services","Cemeteries","R2001"
"Wolverhampton City Council","http://opendatacommunities.org/id/metropolitan-district-council/wolverhampton","708708","William Gough Limited","C2397","-371.77","R&M - Departmental planned (external)","130216554","13/06/2018","Maintenance Programme","Centralised R&M","R2001"
"Wolverhampton City Council","http://opendatacommunities.org/id/metropolitan-district-council/wolverhampton","708708","William Gough Limited","C2403","-144.64","R&M - Departmental planned (external)","130216742","13/06/2018","Maintenance Programme","Centralised R&M","R2001"
"Wolverhampton City Council","http://opendatacommunities.org/id/metropolitan-district-council/wolverhampton","708708","William Gough Limited","84602","40.00","R&M - Departmental planned (external)","130216728","13/06/2018","Maintenance Programme","Centralised R&M","R2001"
"Wolverhampton City Council","http://opendatacommunities.org/id/metropolitan-district-council/wolverhampton","708708","William Gough Limited","84595","79.58","R&M - Departmental planned (external)","130216539","13/06/2018","Maintenance Programme","Centralised R&M","R2001"
"Wolverhampton City Council","http://opendatacommunities.org/id/metropolitan-district-council/wolverhampton","708708","William Gough Limited","84603","40.00","R&M - Departmental planned (external)","130216729","13/06/2018","Maintenance Programme","Centralised R&M","R2001"
"Wolverhampton City Council","http://opendatacommunities.org/id/metropolitan-district-council/wolverhampton","708708","William Gough Limited","84606","71.78","R&M - Departmental planned (external)","130216732","13/06/2018","Maintenance Programme","Centralised R&M","R2001"
"Wolverhampton City Council","http://opendatacommunities.org/id/metropolitan-district-council/wolverhampton","708708","William Gough Limited","84612","40.00","R&M - Departmental planned (external)","130216738","13/06/2018","Maintenance Programme","Centralised R&M","R2001"
"Wolverhampton City Council","http://opendatacommunities.org/id/metropolitan-district-council/wolverhampton","708708","William Gough Limited","C2387","-54.37","R&M - Departmental planned (external)","130216545","13/06/2018","Maintenance Programme","Centralised R&M","R2001"
"Wolverhampton City Council","http://opendatacommunities.org/id/metropolitan-district-council/wolverhampton","708708","William Gough Limited","81387","575.00","R&M - Departmental planned (external)","130152940","08/06/2018","Maintenance Programme","Centralised R&M","R2001"
"Wolverhampton City Council","http://opendatacommunities.org/id/metropolitan-district-council/wolverhampton","708708","William Gough Limited","C2386","-253.13","R&M - Departmental planned (external)","130216544","13/06/2018","Maintenance Programme","Centralised R&M","R2001"
"Wolverhampton City Council","http://opendatacommunities.org/id/metropolitan-district-council/wolverhampton","708708","William Gough Limited","C2385","-249.08","R&M - Departmental planned (external)","130216543","13/06/2018","Maintenance Programme","Centralised R&M","R2001"
"Wolverhampton City Council","http://opendatacommunities.org/id/metropolitan-district-council/wolverhampton","708708","William Gough Limited","C2391","-750.00","R&M - Departmental planned (external)","130216549","13/06/2018","Maintenance Programme","Centralised R&M","R2001"
"Wolverhampton City Council","http://opendatacommunities.org/id/metropolitan-district-council/wolverhampton","708708","William Gough Limited","C2392","-1.29","R&M - Departmental planned (external)","130216550","13/06/2018","Bereavement Services","Cemeteries","R2001"
"Wolverhampton City Council","http://opendatacommunities.org/id/metropolitan-district-council/wolverhampton","708708","William Gough Limited","C2394","-4.46","R&M - Departmental planned (external)","130216552","13/06/2018","Maintenance Programme","Centralised R&M","R2001"
"Wolverhampton City Council","http://opendatacommunities.org/id/metropolitan-district-council/wolverhampton","708708","William Gough Limited","C2389","-38.65","R&M - Departmental planned (external)","130216547","13/06/2018","Maintenance Programme","Centralised R&M","R2001"
"Wolverhampton City Council","http://opendatacommunities.org/id/metropolitan-district-council/wolverhampton","708708","William Gough Limited","C2393","-129.57","R&M - Departmental planned (external)","130216551","13/06/2018","Maintenance Programme","Centralised R&M","R2001"
"Wolverhampton City Council","http://opendatacommunities.org/id/metropolitan-district-council/wolverhampton","708708","William Gough Limited","C2390","-59.82","R&M - Departmental planned (external)","130216548","13/06/2018","Maintenance Programme","Centralised R&M","R2001"
"Wolverhampton City Council","http://opendatacommunities.org/id/metropolitan-district-council/wolverhampton","708708","William Gough Limited","C2395","-45.80","R&M - Departmental planned (external)","130216553","13/06/2018","Maintenance Programme","Centralised R&M","R2001"
"Wolverhampton City Council","http://opendatacommunities.org/id/metropolitan-district-council/wolverhampton","708708","William Gough Limited","84583","12,000.00","R&M - Departmental planned (external)","130216377","08/06/2018","Corporate Asset Management","Centralised Planned Maintenance","R2001"
"Wolverhampton City Council","http://opendatacommunities.org/id/metropolitan-district-council/wolverhampton","708708","William Gough Limited","84584","20,000.00","Construction and Conversion","130216378","08/06/2018","-","Co-Location Programme","C1100"
"Wolverhampton City Council","http://opendatacommunities.org/id/metropolitan-district-council/wolverhampton","708708","William Gough Limited","83068","124.03","R&M - Departmental planned (external)","130192470","01/06/2018","Maintenance Programme","Centralised R&M","R2001"
"Wolverhampton City Council","http://opendatacommunities.org/id/metropolitan-district-council/wolverhampton","708708","William Gough Limited","84591","629.52","R&M - Departmental planned (external)","130216536","13/06/2018","Maintenance Programme","Centralised R&M","R2001"
"Wolverhampton City Council","http://opendatacommunities.org/id/metropolitan-district-council/wolverhampton","708708","William Gough Limited","84415","102.03","R&M - Departmental planned (external)","130214314","20/06/2018","Maintenance Programme","Centralised R&M","R2001"
"Wolverhampton City Council","http://opendatacommunities.org/id/metropolitan-district-council/wolverhampton","708708","William Gough Limited","83907","96.63","R&M - Departmental planned (external)","130214173","20/06/2018","Maintenance Programme","Centralised R&M","R2001"
"Wolverhampton City Council","http://opendatacommunities.org/id/metropolitan-district-council/wolverhampton","708708","William Gough Limited","84392","51.20","R&M - Departmental planned (external)","130213893","20/06/2018","Maintenance Programme","Centralised R&M","R2001"
"Wolverhampton City Council","http://opendatacommunities.org/id/metropolitan-district-council/wolverhampton","708708","William Gough Limited","84394","51.20","R&M - Departmental planned (external)","130213895","20/06/2018","Maintenance Programme","Centralised R&M","R2001"
"Wolverhampton City Council","http://opendatacommunities.org/id/metropolitan-district-council/wolverhampton","708708","William Gough Limited","84390","40.00","R&M - Departmental planned (external)","130214010","20/06/2018","Maintenance Programme","Centralised R&M","R2001"
"Wolverhampton City Council","http://opendatacommunities.org/id/metropolitan-district-council/wolverhampton","708708","William Gough Limited","84391","40.00","R&M - Departmental planned (external)","130214011","20/06/2018","Maintenance Programme","Centralised R&M","R2001"
"Wolverhampton City Council","http://opendatacommunities.org/id/metropolitan-district-council/wolverhampton","708708","William Gough Limited","84617","40.00","R&M - Departmental planned (external)","130217380","20/06/2018","Maintenance Programme","Centralised R&M","R2001"
"Wolverhampton City Council","http://opendatacommunities.org/id/metropolitan-district-council/wolverhampton","708708","William Gough Limited","84620","40.00","R&M - Departmental planned (external)","130217383","20/06/2018","Maintenance Programme","Centralised R&M","R2001"
"Wolverhampton City Council","http://opendatacommunities.org/id/metropolitan-district-council/wolverhampton","708708","William Gough Limited","84417","1,276.80","R&M - Departmental planned (external)","130214316","20/06/2018","Maintenance Programme","Centralised R&M","R2001"
